{"text_format":"1","workbook":"xlsx","n_sheets":20,"sheets":["ロタ","Ｂ型肝炎 ","５種混合","小児用肺炎球菌 ","B C G ","M  R","水痘 ","日本脳炎 ","D  T ","HPV","麻しん","風しん ","ヒブ","４種混合","DPT","不活化ポリオ ","高齢者肺炎球菌","帯状疱疹","成人風しん","RSウイルス母子免疫ワクチン"],"not_rendered":{"charts":0,"images":0,"macros":1,"external_links":0,"defined_names":20,"comments":0,"pivot_tables":0},"unopened":[],"bounds":{"document_bytes":16777216,"sheet_cells":100000,"rows_first":2000,"rows_last":500,"rows_between":2000,"halvings":0,"cell_chars":16384,"cell_head_chars":4096},"cells_cut":0,"cells_raw":0,"read":"whole","date_system":"1900"}

{"sheet":"ロタ","index":0,"n_rows":49,"n_cols":31,"rows_kept":49,"cut":false,"hidden":false,"merged":[[25,2,25,7],[25,8,25,10],[24,8,24,10],[6,20,6,21],[6,17,6,18],[6,12,6,15],[24,2,24,7],[24,17,24,21],[25,17,25,21],[16,10,16,12],[16,14,16,15],[17,5,18,7],[17,8,18,18],[23,2,23,7],[23,8,23,10],[26,17,26,21],[23,12,23,15],[24,12,24,15],[25,12,25,15],[26,12,26,16],[23,17,23,21],[33,18,33,23],[32,18,32,23],[31,16,31,21],[31,6,31,13],[35,6,35,23],[34,6,34,23],[32,9,32,14],[31,22,31,23],[31,2,35,2],[31,3,32,5],[33,3,33,5],[33,6,33,14],[33,15,33,17],[34,3,34,5],[35,3,35,5],[26,8,26,10],[0,21,0,24],[4,1,4,24],[22,2,22,7],[22,8,22,11],[22,12,22,16],[22,17,22,22],[7,11,7,15],[8,12,8,22],[9,13,9,22],[10,13,10,22],[11,13,11,16],[11,20,11,22],[12,13,12,22],[9,10,9,12],[26,2,26,7]]}
[null,null,null,null,null,null,null,null,null,null,null,null,null,null,null,null,null,"（R8年度）",null,null,null,"医師会会員用"]
[]
[null,"(注) これは原本として備え置き、毎月の請求書についてはお手数ですがコピーにてお使いください。"]
[]
[null,"請求書（ロタウイルス）"]
[]
[null,null,"　 ","那 覇 市 長　 様",null,null,null,null,null,null,null,null,null,null,null,null,"年",null,null,"月",null,null,"日"]
[null,null,null,null,null,null,null,null,null,null,"〒"]
[null,null,null,null,null,null,null,null,null,null,"住   所"]
[null,null,null,null,null,null,null,null,null,null,"医療機関名"]
[null,null,null,null,null,null,null,null,null,null,"代表者名",null,null,null,null,null,null,null,null,null,null,null,null,"印"]
[null,null,null,null,null,null,null,null,null,null,"電話番号",null,null,null,null,null,null,"  　ＦＡＸ"]
[null,null,null,null,null,null,null,null,null,null,"担当者名"]
[]
[null,null,"　　予防接種を以下のとおり実施したので、委託契約に基づき請求します。"]
[null,null,null,null,null,null,null,null,null,null,null,null,null,null,null,null,null,null,null,null,null,null,null,null,null,null,null,null,null,null," "]
[null,null,null,null,null,null,null,null,null,"（",null,null,null,"年",null,null,"月","分）"]
[null,null,null,null,null,"請求額",null,null,{"$f":"R27","v":0}]
[]
[null,null,null,"※上記の請求額については、④の請求合計を記入し、頭に￥マークを入れてください。 "]
[null,null,null,"※金額については訂正できません。訂正が必要な場合は請求書を差し替えてください。"]
[]
[null,null,"項　目",null,null,null,null,null,"人数",null,null,null,"単価",null,null,null,null,"金　額"]
[null,null,"①予診のみ",null,null,null,null,null,null,null,null,"人",1705,null,null,null,"円",{"$f":"I24*M24","v":0},null,null,null,null,"円"]
[null,null,"②ロタリックス",null,null,null,null,null,null,null,null,"人",16566,null,null,null,"円",{"$f":"I25*M25","v":0},null,null,null,null,"円"]
[null,null,"③ロタテック",null,null,null,null,null,null,null,null,"人",11539,null,null,null,"円",0,null,null,null,null,"円"]
[null,null,"④請求合計（①＋②＋③）",null,null,null,null,null,{"$f":"SUM(I24:K26)","v":0},null,null,"人","―",null,null,null,null,{"$f":"SUM(R24:V26)","v":0},null,null,null,null,"円"]
[null,null,null,"（※内訳については正しい人数、金額をご記入ください）",null,null,null,null,null,null,null,null,null,null,null,null,null,null,null,null,"（消費税込み）"]
[]
[null,null,"注：④の請求合計の金額は、上記の「請求額」欄に記入する。"]
[]
[null,null,"受取口座","金融機関名",null,null,null,null,null,null,null,null,null,null,"銀行",null,null,null,null,null,null,null,"支店"]
[null,null,null,null,null,null," 金融コード",null,null,null,null,null,null,null,null,"支店コード"]
[null,null,null,"預金種別",null,null," １ 普通　2 当座　3 その他（　　　　　　）",null,null,null,null,null,null,null,null,"口座番号"]
[null,null,null,"フ リ ガ ナ"]
[null,null,null,"口 座 名"]
[null,null,"注1）口座名義は通帳よりご確認のうえ、正しくお書きください。"]
[null,null,"　※　那覇市医師会会員の医療機関は口座に変更がない場合、受取口座欄の記入は不要です。"]
[null,null,"　　　受取口座に変更がある場合は、変更の手続きが必要になりますので下記までご連絡をお願いします。"]
[null,null,"注2）請求書に予診票を添え、ホッチギス（左上側）または紙ひもで留めてください。"]
[null,null,"注3）請求書に予診票を添えて毎月、月末締めの翌月１０日（必着）まで下記の送付先にご提出ください。",null,null,null,null,null,null,null,null,null,null,null,null,null,null,null,null,null,null,null,null,null,null,null,null,null,"　"]
[null,null,"   ※１０日を過ぎた場合は、次月に繰越しご請求ください。"]
[null,null,"   《 送付先 》",null,null,"那覇市医師会生活習慣病検診センター （予防接種係）"]
[null,null,null,null,null,"住 所　　","〒900-0034",null,null,null," 那覇市東町２６番１号"]
[null,null,null,null,null,"ＴＥＬ（０９８）８６０－８５９１",null,null,null,null,null,null,null,null,"ＦＡＸ（０９８）８６０－６６９６"]
[]
[]
[]
[null,null,null,null,null,null,null,null,null,null,null,11]

{"sheet":"Ｂ型肝炎 ","index":1,"n_rows":46,"n_cols":31,"rows_kept":46,"cut":false,"hidden":false,"merged":[[29,18,29,23],[30,18,30,23],[31,6,31,23],[6,19,6,20],[16,14,16,15],[16,10,16,12],[6,11,6,14],[6,16,6,17],[22,2,22,6],[23,2,23,6],[22,7,22,9],[23,7,23,9],[22,16,22,21],[23,16,23,21],[22,11,22,14],[23,11,23,14],[32,3,32,5],[24,2,24,6],[24,11,24,15],[28,2,32,2],[28,3,29,5],[30,3,30,5],[30,6,30,14],[30,15,30,17],[31,3,31,5],[24,7,24,9],[24,16,24,21],[28,6,28,13],[28,16,28,21],[32,6,32,23],[28,22,28,23],[29,9,29,14],[0,21,0,24],[4,1,4,24],[21,2,21,6],[21,7,21,10],[21,11,21,15],[21,16,21,22],[7,11,7,15],[8,12,8,22],[9,10,9,12],[9,13,9,22],[10,13,10,22],[11,13,11,16],[11,20,11,22],[12,13,12,22],[17,5,18,7],[17,8,18,18]]}
[null,null,null,null,null,null,null,null,null,null,null,null,null,null,null,null,null,"（R8年度）",null,null,null,"医師会会員用"]
[]
[null,"(注) これは原本として備え置き、毎月の請求書についてはお手数ですがコピーにてお使いください。"]
[]
[null,"請求書（B型肝炎）"]
[]
[null,null,"　 ","那 覇 市 長　 様",null,null,null,null,null,null,null,null,null,null,null,"年",null,null,"月",null,null,"日"]
[null,null,null,null,null,null,null,null,null,null,"〒"]
[null,null,null,null,null,null,null,null,null,null,"住   所"]
[null,null,null,null,null,null,null,null,null,null,"医療機関名"]
[null,null,null,null,null,null,null,null,null,null,"代表者名",null,null,null,null,null,null,null,null,null,null,null,null,"印"]
[null,null,null,null,null,null,null,null,null,null,"電話番号",null,null,null,null,null,null,"  　ＦＡＸ"]
[null,null,null,null,null,null,null,null,null,null,"担当者名"]
[]
[null,null,"　　予防接種を以下のとおり実施したので、委託契約に基づき請求します。"]
[null,null,null,null,null,null,null,null,null,null,null,null,null,null,null,null,null,null,null,null,null,null,null,null,null,null,null,null,null,null," "]
[null,null,null,null,null,null,null,null,null,"（",null,null,null,"年",null,null,"月","分）"]
[null,null,null,null,null,"請求額",null,null,{"$f":"Q25","v":0}]
[]
[null,null,null,"※上記の請求額については、頭に￥マークを入れてください。 "]
[null,null,null,"※金額については訂正できません。訂正が必要な場合は請求書を差し替えてください。"]
[null,null,"項　目",null,null,null,null,"人数",null,null,null,"単価",null,null,null,null,"金　額"]
[null,null,"予診のみ",null,null,null,null,null,null,null,"人",1705,null,null,null,"円",{"$f":"H23*L23","v":0},null,null,null,null,null,"円"]
[null,null,"予診及び接種",null,null,null,null,null,null,null,"人",8602,null,null,null,"円",{"$f":"H24*L24","v":0},null,null,null,null,null,"円"]
[null,null,"合計",null,null,null,null,{"$f":"SUM(H23:J24)","v":0},null,null,"人","―",null,null,null,null,{"$f":"SUM(Q23:V24)","v":0},null,null,null,null,null,"円"]
[null,null,null,"（※内訳については正しい人数、金額をご記入ください）",null,null,null,null,null,null,null,null,null,null,null,null,null,null,null,"　（消費税込み）"]
[]
[]
[null,null,"受取口座","金融機関名",null,null,null,null,null,null,null,null,null,null,"銀行",null,null,null,null,null,null,null,"支店"]
[null,null,null,null,null,null," 金融コード",null,null,null,null,null,null,null,null,"支店コード"]
[null,null,null,"預金種別",null,null," １ 普通　2 当座　3 その他（　　　　　　）",null,null,null,null,null,null,null,null,"口座番号"]
[null,null,null,"フ リ ガ ナ"]
[null,null,null,"口 座 名"]
[null,null,"注1）口座名義は通帳よりご確認のうえ、正しくお書きください。"]
[null,null,"　※　那覇市医師会会員の医療機関は口座に変更がない場合、受取口座欄の記入は不要です。"]
[null,null,"　　　受取口座に変更がある場合は、変更の手続きが必要になりますので下記までご連絡をお願いします。"]
[null,null,"注2）請求書に予診票を添え、ホッチギス（左上側）または紙ひもで留めてください。"]
[null,null,"注3）請求書に予診票を添えて毎月、月末締めの翌月１０日（必着）まで下記の送付先にご提出ください。"]
[null,null,"   ※１０日を過ぎた場合は、次月に繰越しご請求ください。"]
[null,null,"   《 送付先 》",null,null,"那覇市医師会生活習慣病検診センター （予防接種係）"]
[null,null,null,null,null,"住 所　　","〒900-0034",null,null,null," 那覇市東町２６番１号"]
[null,null,null,null,null,"ＴＥＬ（０９８）８６０－８５９１",null,null,null,null,null,null,null,null,"ＦＡＸ（０９８）８６０－６６９６"]
[]
[]
[]
[null,null,null,null,null,null,null,null,null,null,null,12]

{"sheet":"５種混合","index":2,"n_rows":46,"n_cols":31,"rows_kept":46,"cut":false,"hidden":false,"merged":[[29,18,29,23],[30,18,30,23],[31,6,31,23],[6,11,6,14],[6,16,6,17],[6,19,6,20],[16,10,16,12],[16,14,16,15],[22,2,22,6],[22,7,22,9],[23,2,23,6],[23,7,23,9],[22,16,22,21],[23,16,23,21],[22,11,22,14],[23,11,23,14],[17,5,18,7],[17,8,18,18],[0,21,0,24],[4,1,4,24],[21,2,21,6],[21,7,21,10],[21,11,21,15],[21,16,21,22],[7,11,7,15],[8,12,8,22],[9,10,9,12],[9,13,9,22],[10,13,10,22],[11,13,11,16],[11,20,11,22],[12,13,12,22],[32,3,32,5],[24,2,24,6],[24,11,24,15],[28,2,32,2],[28,3,29,5],[30,3,30,5],[30,6,30,14],[30,15,30,17],[31,3,31,5],[24,7,24,9],[24,16,24,21],[28,6,28,13],[28,16,28,21],[32,6,32,23],[28,22,28,23],[29,9,29,14]]}
[null,null,null,null,null,null,null,null,null,null,null,null,null,null,null,null,null,"（R8年度）",null,null,null,"医師会会員用"]
[]
[null,"(注) これは原本として備え置き、毎月の請求書についてはお手数ですがコピーにてお使いください。"]
[]
[null,"請求書（５種混合）"]
[]
[null,null,"　 ","那 覇 市 長　 様",null,null,null,null,null,null,null,null,null,null,null,"年",null,null,"月",null,null,"日"]
[null,null,null,null,null,null,null,null,null,null,"〒"]
[null,null,null,null,null,null,null,null,null,null,"住   所"]
[null,null,null,null,null,null,null,null,null,null,"医療機関名"]
[null,null,null,null,null,null,null,null,null,null,"代表者名",null,null,null,null,null,null,null,null,null,null,null,null,"印"]
[null,null,null,null,null,null,null,null,null,null,"電話番号",null,null,null,null,null,null,"  　ＦＡＸ"]
[null,null,null,null,null,null,null,null,null,null,"担当者名"]
[]
[null,null,"　　予防接種を以下のとおり実施したので、委託契約に基づき請求します。"]
[null,null,null,null,null,null,null,null,null,null,null,null,null,null,null,null,null,null,null,null,null,null,null,null,null,null,null,null,null,null," "]
[null,null,null,null,null,null,null,null,null,"（",null,null,null,"年",null,null,"月","分）"]
[null,null,null,null,null,"請求額",null,null,{"$f":"Q25","v":0}]
[]
[null,null,null,"※上記の請求額については、頭に￥マークを入れてください。 "]
[null,null,null,"※金額については訂正できません。訂正が必要な場合は請求書を差し替えてください。"]
[null,null,"項　目",null,null,null,null,"人数",null,null,null,"単価",null,null,null,null,"金　額"]
[null,null,"予診のみ",null,null,null,null,null,null,null,"人",1705,null,null,null,"円",{"$f":"H23*L23","v":0},null,null,null,null,null,"円"]
[null,null,"予診及び接種",null,null,null,null,null,null,null,"人",21241,null,null,null,"円",{"$f":"H24*L24","v":0},null,null,null,null,null,"円"]
[null,null,"合計",null,null,null,null,{"$f":"SUM(H23:J24)","v":0},null,null,"人","―",null,null,null,null,{"$f":"SUM(Q23:V24)","v":0},null,null,null,null,null,"円"]
[null,null,null,"（※内訳については正しい人数、金額をご記入ください）",null,null,null,null,null,null,null,null,null,null,null,null,null,null,null,"　（消費税込み）"]
[]
[]
[null,null,"受取口座","金融機関名",null,null,null,null,null,null,null,null,null,null,"銀行",null,null,null,null,null,null,null,"支店"]
[null,null,null,null,null,null," 金融コード",null,null,null,null,null,null,null,null,"支店コード"]
[null,null,null,"預金種別",null,null," １ 普通　2 当座　3 その他（　　　　　　）",null,null,null,null,null,null,null,null,"口座番号"]
[null,null,null,"フ リ ガ ナ"]
[null,null,null,"口 座 名"]
[null,null,"注1）口座名義は通帳よりご確認のうえ、正しくお書きください。"]
[null,null,"　※　那覇市医師会会員の医療機関は口座に変更がない場合、受取口座欄の記入は不要です。"]
[null,null,"　　　受取口座に変更がある場合は、那覇市に債権者登録（変更）が必要ですので、"]
[null,null,"注2）請求書に予診票を添え、ホッチギス（左上側）または紙ひもで留めてください。"]
[null,null,"注3）請求書に予診票を添えて毎月、月末締めの翌月１０日（必着）まで下記の送付先にご提出ください。"]
[null,null,"   ※１０日を過ぎた場合は、次月に繰越しご請求ください。"]
[null,null,"   《 送付先 》",null,null,"那覇市医師会生活習慣病検診センター （予防接種係）"]
[null,null,null,null,null,"住 所　　","〒900-0034",null,null,null," 那覇市東町２６番１号"]
[null,null,null,null,null,"ＴＥＬ（０９８）８６０－８５９１",null,null,null,null,null,null,null,null,"ＦＡＸ（０９８）８６０－６６９６"]
[]
[]
[]
[null,null,null,null,null,null,null,null,null,null,null,13]

{"sheet":"小児用肺炎球菌 ","index":3,"n_rows":46,"n_cols":31,"rows_kept":46,"cut":false,"hidden":false,"merged":[[6,11,6,14],[6,16,6,17],[6,19,6,20],[16,10,16,12],[16,14,16,15],[22,16,22,21],[23,16,23,21],[24,16,24,21],[22,11,22,14],[23,11,23,14],[22,2,22,6],[22,7,22,9],[23,2,23,6],[23,7,23,9],[24,7,24,9],[29,18,29,23],[30,18,30,23],[31,6,31,23],[32,6,32,23],[28,6,28,13],[28,16,28,21],[28,22,28,23],[32,3,32,5],[24,2,24,6],[24,11,24,15],[28,2,32,2],[28,3,29,5],[30,3,30,5],[30,6,30,14],[30,15,30,17],[31,3,31,5],[29,9,29,14],[0,21,0,24],[4,1,4,24],[21,2,21,6],[21,7,21,10],[21,11,21,15],[21,16,21,22],[7,11,7,15],[8,12,8,22],[9,10,9,12],[9,13,9,22],[10,13,10,22],[11,13,11,16],[11,20,11,22],[12,13,12,22],[17,5,18,7],[17,8,18,18]]}
[null,null,null,null,null,null,null,null,null,null,null,null,null,null,null,null,null,"（R8年度）",null,null,null,"医師会会員用"]
[]
[null,"(注) これは原本として備え置き、毎月の請求書についてはお手数ですがコピーにてお使いください。"]
[]
[null,"請求書（小児用肺炎球菌）"]
[]
[null,null,"　 ","那 覇 市 長　 様",null,null,null,null,null,null,null,null,null,null,null,"年",null,null,"月",null,null,"日"]
[null,null,null,null,null,null,null,null,null,null,"〒"]
[null,null,null,null,null,null,null,null,null,null,"住   所"]
[null,null,null,null,null,null,null,null,null,null,"医療機関名"]
[null,null,null,null,null,null,null,null,null,null,"代表者名",null,null,null,null,null,null,null,null,null,null,null,null,"印"]
[null,null,null,null,null,null,null,null,null,null,"電話番号",null,null,null,null,null,null,"  　ＦＡＸ"]
[null,null,null,null,null,null,null,null,null,null,"担当者名"]
[]
[null,null,"　　予防接種を以下のとおり実施したので、委託契約に基づき請求します。"]
[null,null,null,null,null,null,null,null,null,null,null,null,null,null,null,null,null,null,null,null,null,null,null,null,null,null,null,null,null,null," "]
[null,null,null,null,null,null,null,null,null,"（",null,null,null,"年",null,null,"月","分）"]
[null,null,null,null,null,"請求額",null,null,{"$f":"Q25","v":0}]
[]
[null,null,null,"※上記の請求額については、頭に￥マークを入れてください。 "]
[null,null,null,"※金額については訂正できません。訂正が必要な場合は請求書を差し替えてください。"]
[null,null,"項　目",null,null,null,null,"人数",null,null,null,"単価",null,null,null,null,"金　額"]
[null,null,"予診のみ",null,null,null,null,null,null,null,"人",1705,null,null,null,"円",{"$f":"H23*L23","v":0},null,null,null,null,null,"円"]
[null,null,"予診及び接種",null,null,null,null,null,null,null,"人",13101,null,null,null,"円",{"$f":"H24*L24","v":0},null,null,null,null,null,"円"]
[null,null,"合計",null,null,null,null,{"$f":"SUM(H23:J24)","v":0},null,null,"人","―",null,null,null,null,{"$f":"SUM(Q23:V24)","v":0},null,null,null,null,null,"円"]
[null,null,null,"（※内訳については正しい人数、金額をご記入ください）",null,null,null,null,null,null,null,null,null,null,null,null,null,null,null,"　（消費税込み）"]
[]
[]
[null,null,"受取口座","金融機関名",null,null,null,null,null,null,null,null,null,null,"銀行",null,null,null,null,null,null,null,"支店"]
[null,null,null,null,null,null," 金融コード",null,null,null,null,null,null,null,null,"支店コード"]
[null,null,null,"預金種別",null,null," １ 普通　2 当座　3 その他（　　　　　　）",null,null,null,null,null,null,null,null,"口座番号"]
[null,null,null,"フ リ ガ ナ"]
[null,null,null,"口 座 名"]
[null,null,"注1）口座名義は通帳よりご確認のうえ、正しくお書きください。"]
[null,null,"　※　那覇市医師会会員の医療機関は口座に変更がない場合、受取口座欄の記入は不要です。"]
[null,null,"　　　受取口座に変更がある場合は、変更の手続きが必要になりますので下記までご連絡をお願いします。"]
[null,null,"注2）請求書に予診票を添え、ホッチギス（左上側）または紙ひもで留めてください。"]
[null,null,"注3）請求書に予診票を添えて毎月、月末締めの翌月１０日（必着）まで下記の送付先にご提出ください。"]
[null,null,"   ※１０日を過ぎた場合は、次月に繰越しご請求ください。"]
[null,null,"   《 送付先 》",null,null,"那覇市医師会生活習慣病検診センター （予防接種係）"]
[null,null,null,null,null,"住 所　　","〒900-0034",null,null,null," 那覇市東町２６番１号"]
[null,null,null,null,null,"ＴＥＬ（０９８）８６０－８５９１",null,null,null,null,null,null,null,null,"ＦＡＸ（０９８）８６０－６６９６"]
[]
[]
[]
[null,null,null,null,null,null,null,null,null,null,null,14]

{"sheet":"B C G ","index":4,"n_rows":46,"n_cols":31,"rows_kept":46,"cut":false,"hidden":false,"merged":[[31,6,31,23],[32,3,32,5],[32,6,32,23],[28,22,28,23],[29,9,29,14],[29,18,29,23],[30,3,30,5],[30,6,30,14],[30,15,30,17],[30,18,30,23],[6,11,6,14],[6,16,6,17],[6,19,6,20],[16,10,16,12],[16,14,16,15],[12,13,12,22],[17,5,18,7],[17,8,18,18],[24,2,24,6],[24,11,24,15],[28,2,32,2],[28,3,29,5],[24,16,24,21],[24,7,24,9],[28,6,28,13],[28,16,28,21],[31,3,31,5],[22,11,22,14],[23,11,23,14],[22,2,22,6],[23,2,23,6],[22,7,22,9],[23,7,23,9],[22,16,22,21],[23,16,23,21],[0,21,0,24],[4,1,4,24],[21,2,21,6],[21,7,21,10],[21,11,21,15],[21,16,21,22],[7,11,7,15],[8,12,8,22],[9,10,9,12],[9,13,9,22],[10,13,10,22],[11,13,11,16],[11,20,11,22]]}
[null,null,null,null,null,null,null,null,null,null,null,null,null,null,null,null,null,"（R8年度）",null,null,null,"医師会会員用"]
[]
[null,"(注) これは原本として備え置き、毎月の請求書についてはお手数ですがコピーにてお使いください。"]
[]
[null,"請求書（BCG）"]
[]
[null,null,"　 ","那 覇 市 長　 様",null,null,null,null,null,null,null,null,null,null,null,"年",null,null,"月",null,null,"日"]
[null,null,null,null,null,null,null,null,null,null,"〒"]
[null,null,null,null,null,null,null,null,null,null,"住   所"]
[null,null,null,null,null,null,null,null,null,null,"医療機関名"]
[null,null,null,null,null,null,null,null,null,null,"代表者名",null,null,null,null,null,null,null,null,null,null,null,null,"印"]
[null,null,null,null,null,null,null,null,null,null,"電話番号",null,null,null,null,null,null,"  　ＦＡＸ"]
[null,null,null,null,null,null,null,null,null,null,"担当者名"]
[]
[null,null,"　　予防接種を以下のとおり実施したので、委託契約に基づき請求します。"]
[null,null,null,null,null,null,null,null,null,null,null,null,null,null,null,null,null,null,null,null,null,null,null,null,null,null,null,null,null,null," "]
[null,null,null,null,null,null,null,null,null,"（",null,null,null,"年",null,null,"月","分）"]
[null,null,null,null,null,"請求額",null,null,{"$f":"Q25","v":0}]
[]
[null,null,null,"※上記の請求額については、頭に￥マークを入れてください。 "]
[null,null,null,"※金額については訂正できません。訂正が必要な場合は請求書を差し替えてください。"]
[null,null,"項　目",null,null,null,null,"人数",null,null,null,"単価",null,null,null,null,"金　額"]
[null,null,"予診のみ",null,null,null,null,null,null,null,"人",1705,null,null,null,"円",{"$f":"H23*L23","v":0},null,null,null,null,null,"円"]
[null,null,"予診及び接種",null,null,null,null,null,null,null,"人",13046,null,null,null,"円",{"$f":"H24*L24","v":0},null,null,null,null,null,"円"]
[null,null,"合計",null,null,null,null,{"$f":"SUM(H23:J24)","v":0},null,null,"人","―",null,null,null,null,{"$f":"SUM(Q23:V24)","v":0},null,null,null,null,null,"円"]
[null,null,null,"（※内訳については正しい人数、金額をご記入ください）",null,null,null,null,null,null,null,null,null,null,null,null,null,null,null,"　（消費税込み）"]
[]
[]
[null,null,"受取口座","金融機関名",null,null,null,null,null,null,null,null,null,null,"銀行",null,null,null,null,null,null,null,"支店"]
[null,null,null,null,null,null," 金融コード",null,null,null,null,null,null,null,null,"支店コード"]
[null,null,null,"預金種別",null,null," １ 普通　2 当座　3 その他（　　　　　　）",null,null,null,null,null,null,null,null,"口座番号"]
[null,null,null,"フ リ ガ ナ"]
[null,null,null,"口 座 名"]
[null,null,"注1）口座名義は通帳よりご確認のうえ、正しくお書きください。"]
[null,null,"　※　那覇市医師会会員の医療機関は口座に変更がない場合、受取口座欄の記入は不要です。"]
[null,null,"　　　受取口座に変更がある場合は、那覇市に債権者登録（変更）が必要ですので、"]
[null,null,"         那覇市保健所健康増進課　（TEL ８５３－７９６１）　予防接種グループへご連絡ください。"]
[null,null,"注2）請求書に予診票を添え、ホッチギス（左上側）または紙ひもで留めてください。"]
[null,null,"注3）請求書に予診票を添えて毎月、月末締めの翌月１０日（必着）まで下記の送付先にご提出ください。"]
[null,null,"   ※１０日を過ぎた場合は、次月に繰越しご請求ください。"]
[null,null,"   《 送付先 》",null,null,"那覇市医師会生活習慣病検診センター （予防接種係）"]
[null,null,null,null,null,"住 所　　","〒900-0034",null,null,null," 那覇市東町２６番１号"]
[null,null,null,null,null,"ＴＥＬ（０９８）８６０－８５９１",null,null,null,null,null,null,null,null,"ＦＡＸ（０９８）８６０－６６９６"]
[]
[]
[null,null,null,null,null,null,null,null,null,null,null,15]

{"sheet":"M  R","index":5,"n_rows":46,"n_cols":31,"rows_kept":46,"cut":false,"hidden":false,"merged":[[31,6,31,23],[32,3,32,5],[32,6,32,23],[28,22,28,23],[29,9,29,14],[29,18,29,23],[30,3,30,5],[30,6,30,14],[30,15,30,17],[30,18,30,23],[6,11,6,14],[6,16,6,17],[6,19,6,20],[16,10,16,12],[16,14,16,15],[12,13,12,22],[17,5,18,7],[17,8,18,18],[24,2,24,6],[24,11,24,15],[28,2,32,2],[28,3,29,5],[24,7,24,9],[24,16,24,21],[28,6,28,13],[28,16,28,21],[31,3,31,5],[22,11,22,14],[23,11,23,14],[22,2,22,6],[22,7,22,9],[23,2,23,6],[23,7,23,9],[22,16,22,21],[23,16,23,21],[0,21,0,24],[4,1,4,24],[21,2,21,6],[21,7,21,10],[21,11,21,15],[21,16,21,22],[7,11,7,15],[8,12,8,22],[9,10,9,12],[9,13,9,22],[10,13,10,22],[11,13,11,16],[11,20,11,22]]}
[null,null,null,null,null,null,null,null,null,null,null,null,null,null,null,null,null,"（R8年度）",null,null,null,"医師会会員用"]
[]
[null,"(注) これは原本として備え置き、毎月の請求書についてはお手数ですがコピーにてお使いください。"]
[]
[null,"請求書（M R）"]
[]
[null,null,"　 ","那 覇 市 長　 様",null,null,null,null,null,null,null,null,null,null,null,"年",null,null,"月",null,null,"日"]
[null,null,null,null,null,null,null,null,null,null,"〒"]
[null,null,null,null,null,null,null,null,null,null,"住   所"]
[null,null,null,null,null,null,null,null,null,null,"医療機関名"]
[null,null,null,null,null,null,null,null,null,null,"代表者名",null,null,null,null,null,null,null,null,null,null,null,null,"印"]
[null,null,null,null,null,null,null,null,null,null,"電話番号",null,null,null,null,null,null,"  　ＦＡＸ"]
[null,null,null,null,null,null,null,null,null,null,"担当者名"]
[]
[null,null,"　　予防接種を以下のとおり実施したので、委託契約に基づき請求します。"]
[null,null,null,null,null,null,null,null,null,null,null,null,null,null,null,null,null,null,null,null,null,null,null,null,null,null,null,null,null,null," "]
[null,null,null,null,null,null,null,null,null,"（",null,null,null,"年",null,null,"月","分）"]
[null,null,null,null,null,"請求額",null,null,{"$f":"Q25","v":0}]
[]
[null,null,null,"※上記の請求額については、頭に￥マークを入れてください。 "]
[null,null,null,"※金額については訂正できません。訂正が必要な場合は請求書を差し替えてください。"]
[null,null,"項　目",null,null,null,null,"人数",null,null,null,"単価",null,null,null,null,"金　額"]
[null,null,"予診のみ",null,null,null,null,null,null,null,"人",1705,null,null,null,"円",{"$f":"H23*L23","v":0},null,null,null,null,null,"円"]
[null,null,"予診及び接種",null,null,null,null,null,null,null,"人",11891,null,null,null,"円",{"$f":"H24*L24","v":0},null,null,null,null,null,"円"]
[null,null,"合計",null,null,null,null,{"$f":"SUM(H23:J24)","v":0},null,null,"人","―",null,null,null,null,{"$f":"SUM(Q23:V24)","v":0},null,null,null,null,null,"円"]
[null,null,null,"（※内訳については正しい人数、金額をご記入ください）",null,null,null,null,null,null,null,null,null,null,null,null,null,null,null,"　（消費税込み）"]
[]
[]
[null,null,"受取口座","金融機関名",null,null,null,null,null,null,null,null,null,null,"銀行",null,null,null,null,null,null,null,"支店"]
[null,null,null,null,null,null," 金融コード",null,null,null,null,null,null,null,null,"支店コード"]
[null,null,null,"預金種別",null,null," １ 普通　2 当座　3 その他（　　　　　　）",null,null,null,null,null,null,null,null,"口座番号"]
[null,null,null,"フ リ ガ ナ"]
[null,null,null,"口 座 名"]
[null,null,"注1）口座名義は通帳よりご確認のうえ、正しくお書きください。"]
[null,null,"　※　那覇市医師会会員の医療機関は口座に変更がない場合、受取口座欄の記入は不要です。"]
[null,null,"　　　受取口座に変更がある場合は、変更の手続きが必要になりますので下記までご連絡をお願いします。"]
[null,null,"注2）請求書に予診票を添え、ホッチギス（左上側）または紙ひもで留めてください。"]
[null,null,"注3）請求書に予診票を添えて毎月、月末締めの翌月１０日（必着）まで下記の送付先にご提出ください。"]
[null,null,"   ※１０日を過ぎた場合は、次月に繰越しご請求ください。"]
[null,null,"   《 送付先 》",null,null,"那覇市医師会生活習慣病検診センター （予防接種係）"]
[null,null,null,null,null,"住 所　　","〒900-0034",null,null,null," 那覇市東町２６番１号"]
[null,null,null,null,null,"ＴＥＬ（０９８）８６０－８５９１",null,null,null,null,null,null,null,null,"ＦＡＸ（０９８）８６０－６６９６"]
[]
[]
[]
[null,null,null,null,null,null,null,null,null,null,null,16]

{"sheet":"水痘 ","index":6,"n_rows":46,"n_cols":31,"rows_kept":46,"cut":false,"hidden":false,"merged":[[31,6,31,23],[32,3,32,5],[32,6,32,23],[28,22,28,23],[29,9,29,14],[29,18,29,23],[30,3,30,5],[30,6,30,14],[30,15,30,17],[30,18,30,23],[6,11,6,14],[6,16,6,17],[6,19,6,20],[16,10,16,12],[16,14,16,15],[12,13,12,22],[17,5,18,7],[17,8,18,18],[24,2,24,6],[24,11,24,15],[28,2,32,2],[28,3,29,5],[24,7,24,9],[24,16,24,21],[28,6,28,13],[28,16,28,21],[31,3,31,5],[22,11,22,14],[23,11,23,14],[22,2,22,6],[22,7,22,9],[23,2,23,6],[23,7,23,9],[22,16,22,21],[23,16,23,21],[0,21,0,24],[4,1,4,24],[21,2,21,6],[21,7,21,10],[21,11,21,15],[21,16,21,22],[7,11,7,15],[8,12,8,22],[9,10,9,12],[9,13,9,22],[10,13,10,22],[11,13,11,16],[11,20,11,22]]}
[null,null,null,null,null,null,null,null,null,null,null,null,null,null,null,null,null,"（R8年度）",null,null,null,"医師会会員用"]
[]
[null,"(注) これは原本として備え置き、毎月の請求書についてはお手数ですがコピーにてお使いください。"]
[]
[null,"請求書（水痘）"]
[]
[null,null,"　 ","那 覇 市 長　 様",null,null,null,null,null,null,null,null,null,null,null,"年",null,null,"月",null,null,"日"]
[null,null,null,null,null,null,null,null,null,null,"〒"]
[null,null,null,null,null,null,null,null,null,null,"住   所"]
[null,null,null,null,null,null,null,null,null,null,"医療機関名"]
[null,null,null,null,null,null,null,null,null,null,"代表者名",null,null,null,null,null,null,null,null,null,null,null,null,"印"]
[null,null,null,null,null,null,null,null,null,null,"電話番号",null,null,null,null,null,null,"  　ＦＡＸ"]
[null,null,null,null,null,null,null,null,null,null,"担当者名"]
[]
[null,null,"　　予防接種を以下のとおり実施したので、委託契約に基づき請求します。"]
[null,null,null,null,null,null,null,null,null,null,null,null,null,null,null,null,null,null,null,null,null,null,null,null,null,null,null,null,null,null," "]
[null,null,null,null,null,null,null,null,null,"（",null,null,null,"年",null,null,"月","分）"]
[null,null,null,null,null,"請求額",null,null,{"$f":"Q25","v":0}]
[]
[null,null,null,"※上記の請求額については、頭に￥マークを入れてください。 "]
[null,null,null,"※金額については訂正できません。訂正が必要な場合は請求書を差し替えてください。"]
[null,null,"項　目",null,null,null,null,"人数",null,null,null,"単価",null,null,null,null,"金　額"]
[null,null,"予診のみ",null,null,null,null,null,null,null,"人",1705,null,null,null,"円",{"$f":"H23*L23","v":0},null,null,null,null,null,"円"]
[null,null,"予診及び接種",null,null,null,null,null,null,null,"人",10846,null,null,null,"円",{"$f":"H24*L24","v":0},null,null,null,null,null,"円"]
[null,null,"合計",null,null,null,null,{"$f":"SUM(H23:J24)","v":0},null,null,"人","―",null,null,null,null,{"$f":"SUM(Q23:V24)","v":0},null,null,null,null,null,"円"]
[null,null,null,"（※内訳については正しい人数、金額をご記入ください）",null,null,null,null,null,null,null,null,null,null,null,null,null,null,null,"　（消費税込み）"]
[]
[]
[null,null,"受取口座","金融機関名",null,null,null,null,null,null,null,null,null,null,"銀行",null,null,null,null,null,null,null,"支店"]
[null,null,null,null,null,null," 金融コード",null,null,null,null,null,null,null,null,"支店コード"]
[null,null,null,"預金種別",null,null," １ 普通　2 当座　3 その他（　　　　　　）",null,null,null,null,null,null,null,null,"口座番号"]
[null,null,null,"フ リ ガ ナ"]
[null,null,null,"口 座 名"]
[null,null,"注1）口座名義は通帳よりご確認のうえ、正しくお書きください。"]
[null,null,"　※　那覇市医師会会員の医療機関は口座に変更がない場合、受取口座欄の記入は不要です。"]
[null,null,"　　　受取口座に変更がある場合は、那覇市に債権者登録（変更）が必要ですので、"]
[null,null,"         那覇市保健所健康増進課　（TEL ８５３－７９６１）　予防接種グループへご連絡ください。"]
[null,null,"注2）請求書に予診票を添え、ホッチギス（左上側）または紙ひもで留めてください。"]
[null,null,"注3）請求書に予診票を添えて毎月、月末締めの翌月１０日（必着）まで下記の送付先にご提出ください。"]
[null,null,"   ※１０日を過ぎた場合は、次月に繰越しご請求ください。"]
[null,null,"   《 送付先 》",null,null,"那覇市医師会生活習慣病検診センター （予防接種係）"]
[null,null,null,null,null,"住 所　　","〒900-0034",null,null,null," 那覇市東町２６番１号"]
[null,null,null,null,null,"ＴＥＬ（０９８）８６０－８５９１",null,null,null,null,null,null,null,null,"ＦＡＸ（０９８）８６０－６６９６"]
[]
[]
[null,null,null,null,null,null,null,null,null,null,null,17]

{"sheet":"日本脳炎 ","index":7,"n_rows":46,"n_cols":31,"rows_kept":46,"cut":false,"hidden":false,"merged":[[31,6,31,23],[32,3,32,5],[32,6,32,23],[28,22,28,23],[29,9,29,14],[29,18,29,23],[30,3,30,5],[30,6,30,14],[30,15,30,17],[30,18,30,23],[6,11,6,14],[6,16,6,17],[6,19,6,20],[16,10,16,12],[16,14,16,15],[12,13,12,22],[17,5,18,7],[17,8,18,18],[24,2,24,6],[24,11,24,15],[28,2,32,2],[28,3,29,5],[24,7,24,9],[24,16,24,21],[28,6,28,13],[28,16,28,21],[31,3,31,5],[22,11,22,14],[23,11,23,14],[22,2,22,6],[22,7,22,9],[23,2,23,6],[23,7,23,9],[22,16,22,21],[23,16,23,21],[0,21,0,24],[4,1,4,24],[21,2,21,6],[21,7,21,10],[21,11,21,15],[21,16,21,22],[7,11,7,15],[8,12,8,22],[9,10,9,12],[9,13,9,22],[10,13,10,22],[11,13,11,16],[11,20,11,22]]}
[null,null,null,null,null,null,null,null,null,null,null,null,null,null,null,null,null,"（R8年度）",null,null,null,"医師会会員用"]
[]
[null,"(注) これは原本として備え置き、毎月の請求書についてはお手数ですがコピーにてお使いください。"]
[]
[null,"請求書（日本脳炎）"]
[]
[null,null,"　 ","那 覇 市 長　 様",null,null,null,null,null,null,null,null,null,null,null,"年",null,null,"月",null,null,"日"]
[null,null,null,null,null,null,null,null,null,null,"〒"]
[null,null,null,null,null,null,null,null,null,null,"住   所"]
[null,null,null,null,null,null,null,null,null,null,"医療機関名"]
[null,null,null,null,null,null,null,null,null,null,"代表者名",null,null,null,null,null,null,null,null,null,null,null,null,"印"]
[null,null,null,null,null,null,null,null,null,null,"電話番号",null,null,null,null,null,null,"  　ＦＡＸ"]
[null,null,null,null,null,null,null,null,null,null,"担当者名"]
[]
[null,null,"　　予防接種を以下のとおり実施したので、委託契約に基づき請求します。"]
[null,null,null,null,null,null,null,null,null,null,null,null,null,null,null,null,null,null,null,null,null,null,null,null,null,null,null,null,null,null," "]
[null,null,null,null,null,null,null,null,null,"（",null,null,null,"年",null,null,"月","分）"]
[null,null,null,null,null,"請求額",null,null,{"$f":"Q25","v":0}]
[]
[null,null,null,"※上記の請求額については、頭に￥マークを入れてください。 "]
[null,null,null,"※金額については訂正できません。訂正が必要な場合は請求書を差し替えてください。"]
[null,null,"項　目",null,null,null,null,"人数",null,null,null,"単価",null,null,null,null,"金　額"]
[null,null,"予診のみ",null,null,null,null,null,null,null,"人",1705,null,null,null,"円",{"$f":"H23*L23","v":0},null,null,null,null,null,"円"]
[null,null,"予診及び接種",null,null,null,null,null,null,null,"人",8756,null,null,null,"円",{"$f":"H24*L24","v":0},null,null,null,null,null,"円"]
[null,null,"合計",null,null,null,null,{"$f":"SUM(H23:J24)","v":0},null,null,"人","―",null,null,null,null,{"$f":"SUM(Q23:V24)","v":0},null,null,null,null,null,"円"]
[null,null,null,"（※内訳については正しい人数、金額をご記入ください）",null,null,null,null,null,null,null,null,null,null,null,null,null,null,null,"　（消費税込み）"]
[]
[]
[null,null,"受取口座","金融機関名",null,null,null,null,null,null,null,null,null,null,"銀行",null,null,null,null,null,null,null,"支店"]
[null,null,null,null,null,null," 金融コード",null,null,null,null,null,null,null,null,"支店コード"]
[null,null,null,"預金種別",null,null," １ 普通　2 当座　3 その他（　　　　　　）",null,null,null,null,null,null,null,null,"口座番号"]
[null,null,null,"フ リ ガ ナ"]
[null,null,null,"口 座 名"]
[null,null,"注1）口座名義は通帳よりご確認のうえ、正しくお書きください。"]
[null,null,"　※　那覇市医師会会員の医療機関は口座に変更がない場合、受取口座欄の記入は不要です。"]
[null,null,"　　　受取口座に変更がある場合は、那覇市に債権者登録（変更）が必要ですので、"]
[null,null,"　　  那覇市保健所健康増進課　（TEL ８５３－７９６１）　予防接種グループへご連絡ください。"]
[null,null,"注2）請求書に予診票を添え、ホッチギス（左上側）または紙ひもで留めてください。"]
[null,null,"注3）請求書に予診票を添えて毎月、月末締めの翌月１０日（必着）まで下記の送付先にご提出ください。"]
[null,null,"   ※１０日を過ぎた場合は、次月に繰越しご請求ください。"]
[null,null,"   《 送付先 》",null,null,"那覇市医師会生活習慣病検診センター （予防接種係）"]
[null,null,null,null,null,"住 所　　","〒900-0034",null,null,null," 那覇市東町２６番１号"]
[null,null,null,null,null,"ＴＥＬ（０９８）８６０－８５９１",null,null,null,null,null,null,null,null,"ＦＡＸ（０９８）８６０－６６９６"]
[]
[]
[null,null,null,null,null,null,null,null,null,null,null,18]

{"sheet":"D  T ","index":8,"n_rows":46,"n_cols":31,"rows_kept":46,"cut":false,"hidden":false,"merged":[[31,6,31,23],[32,3,32,5],[32,6,32,23],[28,22,28,23],[29,9,29,14],[29,18,29,23],[30,3,30,5],[30,6,30,14],[30,15,30,17],[30,18,30,23],[6,11,6,14],[6,16,6,17],[6,19,6,20],[16,10,16,12],[16,14,16,15],[12,13,12,22],[17,5,18,7],[17,8,18,18],[24,2,24,6],[24,11,24,15],[28,2,32,2],[28,3,29,5],[24,7,24,9],[24,16,24,21],[28,6,28,13],[28,16,28,21],[31,3,31,5],[22,11,22,14],[23,11,23,14],[22,2,22,6],[22,7,22,9],[23,2,23,6],[23,7,23,9],[22,16,22,21],[23,16,23,21],[0,21,0,24],[4,1,4,24],[21,2,21,6],[21,7,21,10],[21,11,21,15],[21,16,21,22],[7,11,7,15],[8,12,8,22],[9,10,9,12],[9,13,9,22],[10,13,10,22],[11,13,11,16],[11,20,11,22]]}
[null,null,null,null,null,null,null,null,null,null,null,null,null,null,null,null,null,"（R8年度）",null,null,null,"医師会会員用"]
[]
[null,"(注) これは原本として備え置き、毎月の請求書についてはお手数ですがコピーにてお使いください。"]
[]
[null,"請求書（D T）"]
[]
[null,null,"　 ","那 覇 市 長　 様",null,null,null,null,null,null,null,null,null,null,null,"年",null,null,"月",null,null,"日"]
[null,null,null,null,null,null,null,null,null,null,"〒"]
[null,null,null,null,null,null,null,null,null,null,"住   所"]
[null,null,null,null,null,null,null,null,null,null,"医療機関名"]
[null,null,null,null,null,null,null,null,null,null,"代表者名",null,null,null,null,null,null,null,null,null,null,null,null,"印"]
[null,null,null,null,null,null,null,null,null,null,"電話番号",null,null,null,null,null,null,"  　ＦＡＸ"]
[null,null,null,null,null,null,null,null,null,null,"担当者名"]
[]
[null,null,"　　予防接種を以下のとおり実施したので、委託契約に基づき請求します。"]
[null,null,null,null,null,null,null,null,null,null,null,null,null,null,null,null,null,null,null,null,null,null,null,null,null,null,null,null,null,null," "]
[null,null,null,null,null,null,null,null,null,"（",null,null,null,"年",null,null,"月","分）"]
[null,null,null,null,null,"請求額",null,null,{"$f":"Q25","v":0}]
[]
[null,null,null,"※上記の請求額については、頭に￥マークを入れてください。 "]
[null,null,null,"※金額については訂正できません。訂正が必要な場合は請求書を差し替えてください。"]
[null,null,"項　目",null,null,null,null,"人数",null,null,null,"単価",null,null,null,null,"金　額"]
[null,null,"予診のみ",null,null,null,null,null,null,null,"人",1705,null,null,null,"円",{"$f":"H23*L23","v":0},null,null,null,null,null,"円"]
[null,null,"予診及び接種",null,null,null,null,null,null,null,"人",6336,null,null,null,"円",{"$f":"H24*L24","v":0},null,null,null,null,null,"円"]
[null,null,"合計",null,null,null,null,{"$f":"SUM(H23:J24)","v":0},null,null,"人","―",null,null,null,null,{"$f":"SUM(Q23:V24)","v":0},null,null,null,null,null,"円"]
[null,null,null,"（※内訳については正しい人数、金額をご記入ください）",null,null,null,null,null,null,null,null,null,null,null,null,null,null,null,"　（消費税込み）"]
[]
[]
[null,null,"受取口座","金融機関名",null,null,null,null,null,null,null,null,null,null,"銀行",null,null,null,null,null,null,null,"支店"]
[null,null,null,null,null,null," 金融コード",null,null,null,null,null,null,null,null,"支店コード"]
[null,null,null,"預金種別",null,null," １ 普通　2 当座　3 その他（　　　　　　）",null,null,null,null,null,null,null,null,"口座番号"]
[null,null,null,"フ リ ガ ナ"]
[null,null,null,"口 座 名"]
[null,null,"注1）口座名義は通帳よりご確認のうえ、正しくお書きください。"]
[null,null,"　※　那覇市医師会会員の医療機関は口座に変更がない場合、受取口座欄の記入は不要です。"]
[null,null,"　　　受取口座に変更がある場合は、那覇市に債権者登録（変更）が必要ですので、"]
[null,null,"         那覇市保健所健康増進課　（TEL ８５３－７９６１）　予防接種グループへご連絡ください。"]
[null,null,"注2）請求書に予診票を添え、ホッチギス（左上側）または紙ひもで留めてください。"]
[null,null,"注3）請求書に予診票を添えて毎月、月末締めの翌月１０日（必着）まで下記の送付先にご提出ください。"]
[null,null,"   ※１０日を過ぎた場合は、次月に繰越しご請求ください。"]
[null,null,"   《 送付先 》",null,null,"那覇市医師会生活習慣病検診センター （予防接種係）"]
[null,null,null,null,null,"住 所　　","〒900-0034",null,null,null," 那覇市東町２６番１号"]
[null,null,null,null,null,"ＴＥＬ（０９８）８６０－８５９１",null,null,null,null,null,null,null,null,"ＦＡＸ（０９８）８６０－６６９６"]
[]
[]
[null,null,null,null,null,null,null,null,null,null,null,19]

{"sheet":"HPV","index":9,"n_rows":46,"n_cols":31,"rows_kept":46,"cut":false,"hidden":false,"merged":[[28,2,32,2],[32,6,32,23],[30,3,30,5],[30,6,30,14],[30,15,30,17],[30,18,30,23],[31,3,31,5],[31,6,31,23],[28,3,29,5],[28,6,28,13],[28,16,28,21],[28,22,28,23],[29,9,29,14],[16,10,16,12],[16,14,16,15],[10,13,10,22],[11,13,11,16],[11,20,11,22],[12,13,12,22],[29,18,29,23],[22,16,22,21],[23,16,23,21],[24,16,24,21],[17,5,18,7],[17,8,18,18],[32,3,32,5],[22,2,22,6],[22,7,22,9],[23,2,23,6],[23,7,23,9],[24,2,24,6],[24,7,24,9],[21,2,21,6],[21,7,21,10],[21,11,21,15],[21,16,21,22],[22,11,22,14],[23,11,23,14],[24,11,24,15],[0,21,0,24],[4,1,4,24],[7,11,7,15],[8,12,8,22],[9,10,9,12],[9,13,9,22],[6,11,6,14],[6,16,6,17],[6,19,6,20]]}
[null,null,null,null,null,null,null,null,null,null,null,null,null,null,null,null,null,"（R8年度）",null,null,null,"医師会会員用"]
[]
[null,"(注) これは原本として備え置き、毎月の請求書についてはお手数ですがコピーにてお使いください。"]
[]
[null,"請求書（HPV9価）"]
[]
[null,null,"　 ","那 覇 市 長　 様",null,null,null,null,null,null,null,null,null,null,null,"年",null,null,"月",null,null,"日"]
[null,null,null,null,null,null,null,null,null,null,"〒"]
[null,null,null,null,null,null,null,null,null,null,"住   所"]
[null,null,null,null,null,null,null,null,null,null,"医療機関名"]
[null,null,null,null,null,null,null,null,null,null,"代表者名",null,null,null,null,null,null,null,null,null,null,null,null,"印"]
[null,null,null,null,null,null,null,null,null,null,"電話番号",null,null,null,null,null,null,"  　ＦＡＸ"]
[null,null,null,null,null,null,null,null,null,null,"担当者名"]
[]
[null,null,"　　予防接種を以下のとおり実施したので、委託契約に基づき請求します。"]
[null,null,null,null,null,null,null,null,null,null,null,null,null,null,null,null,null,null,null,null,null,null,null,null,null,null,null,null,null,null," "]
[null,null,null,null,null,null,null,null,null,"（",null,null,null,"年",null,null,"月","分）"]
[null,null,null,null,null,"請求額",null,null,{"$f":"Q25","v":0}]
[]
[null,null,null,"※上記の請求額については、頭に￥マークを入れてください。 "]
[null,null,null,"※金額については訂正できません。訂正が必要な場合は請求書を差し替えてください。"]
[null,null,"項　目",null,null,null,null,"人数",null,null,null,"単価",null,null,null,null,"金　額"]
[null,null,"予診のみ",null,null,null,null,null,null,null,"人",1705,null,null,null,"円",{"$f":"H23*L23","v":0},null,null,null,null,null,"円"]
[null,null,"予診及び接種",null,null,null,null,null,null,null,"人",29766,null,null,null,"円",{"$f":"H24*L24","v":0},null,null,null,null,null,"円"]
[null,null,"合計",null,null,null,null,{"$f":"SUM(H23:J24)","v":0},null,null,"人","―",null,null,null,null,{"$f":"SUM(Q23:V24)","v":0},null,null,null,null,null,"円"]
[null,null,null,"（※内訳については正しい人数、金額をご記入ください）",null,null,null,null,null,null,null,null,null,null,null,null,null,null,null,null,"（消費税込み）"]
[]
[]
[null,null,"受取口座","金融機関名",null,null,null,null,null,null,null,null,null,null,"銀行",null,null,null,null,null,null,null,"支店"]
[null,null,null,null,null,null," 金融コード",null,null,null,null,null,null,null,null,"支店コード"]
[null,null,null,"預金種別",null,null," １ 普通　2 当座　3 その他（　　　　　　）",null,null,null,null,null,null,null,null,"口座番号"]
[null,null,null,"フ リ ガ ナ"]
[null,null,null,"口 座 名"]
[null,null,"注1）口座名義は通帳よりご確認のうえ、正しくお書きください。"]
[null,null,"　※　那覇市医師会会員の医療機関は口座に変更がない場合、受取口座欄の記入は不要です。"]
[null,null,"　　　受取口座に変更がある場合は、変更の手続きが必要になりますので下記までご連絡をお願いします。"]
[null,null,"注2）請求書に予診票を添え、ホッチギス（左上側）または紙ひもで留めてください。"]
[null,null,"注3）請求書に予診票を添えて毎月、月末締めの翌月１０日（必着）まで下記の送付先にご提出ください。"]
[null,null,"   ※１０日を過ぎた場合は、次月に繰越しご請求ください。"]
[null,null,"   《 送付先 》",null,null,"那覇市医師会生活習慣病検診センター （予防接種係）"]
[null,null,null,null,null,"住 所　　","〒900-0034",null,null,null," 那覇市東町２６番１号"]
[null,null,null,null,null,"ＴＥＬ（０９８）８６０－８５９１",null,null,null,null,null,null,null,null,"ＦＡＸ（０９８）８６０－６６９６"]
[]
[]
[]
[null,null,null,null,null,null,null,null,null,null,null,20]

{"sheet":"麻しん","index":10,"n_rows":46,"n_cols":31,"rows_kept":46,"cut":false,"hidden":false,"merged":[[31,6,31,23],[32,3,32,5],[32,6,32,23],[28,22,28,23],[29,9,29,14],[29,18,29,23],[30,3,30,5],[30,6,30,14],[30,15,30,17],[30,18,30,23],[6,11,6,14],[6,16,6,17],[6,19,6,20],[16,10,16,12],[16,14,16,15],[12,13,12,22],[17,5,18,7],[17,8,18,18],[24,2,24,6],[24,11,24,15],[28,2,32,2],[28,3,29,5],[24,7,24,9],[24,16,24,21],[28,6,28,13],[28,16,28,21],[31,3,31,5],[22,11,22,14],[23,11,23,14],[22,2,22,6],[22,7,22,9],[23,2,23,6],[23,7,23,9],[22,16,22,21],[23,16,23,21],[0,21,0,24],[4,1,4,24],[21,2,21,6],[21,7,21,10],[21,11,21,15],[21,16,21,22],[7,11,7,15],[8,12,8,22],[9,10,9,12],[9,13,9,22],[10,13,10,22],[11,13,11,16],[11,20,11,22]]}
[null,null,null,null,null,null,null,null,null,null,null,null,null,null,null,null,null,"（R8年度）",null,null,null,"医師会会員用"]
[]
[null,"(注) これは原本として備え置き、毎月の請求書についてはお手数ですがコピーにてお使いください。"]
[]
[null,"請求書（麻しん）"]
[]
[null,null,"　 ","那 覇 市 長　 様",null,null,null,null,null,null,null,null,null,null,null,"年",null,null,"月",null,null,"日"]
[null,null,null,null,null,null,null,null,null,null,"〒"]
[null,null,null,null,null,null,null,null,null,null,"住   所"]
[null,null,null,null,null,null,null,null,null,null,"医療機関名"]
[null,null,null,null,null,null,null,null,null,null,"代表者名",null,null,null,null,null,null,null,null,null,null,null,null,"印"]
[null,null,null,null,null,null,null,null,null,null,"電話番号",null,null,null,null,null,null,"  　ＦＡＸ"]
[null,null,null,null,null,null,null,null,null,null,"担当者名"]
[]
[null,null,"　　予防接種を以下のとおり実施したので、委託契約に基づき請求します。"]
[null,null,null,null,null,null,null,null,null,null,null,null,null,null,null,null,null,null,null,null,null,null,null,null,null,null,null,null,null,null," "]
[null,null,null,null,null,null,null,null,null,"（",null,null,null,"年",null,null,"月","分）"]
[null,null,null,null,null,"請求額",null,null,{"$f":"Q25","v":0}]
[]
[null,null,null,"※上記の請求額については、頭に￥マークを入れてください。 "]
[null,null,null,"※金額については訂正できません。訂正が必要な場合は請求書を差し替えてください。"]
[null,null,"項　目",null,null,null,null,"人数",null,null,null,"単価",null,null,null,null,"金　額"]
[null,null,"予診のみ",null,null,null,null,null,null,null,"人",1705,null,null,null,"円",{"$f":"H23*L23","v":0},null,null,null,null,null,"円"]
[null,null,"予診及び接種",null,null,null,null,null,null,null,"人",8294,null,null,null,"円",{"$f":"H24*L24","v":0},null,null,null,null,null,"円"]
[null,null,"合計",null,null,null,null,{"$f":"SUM(H23:J24)","v":0},null,null,"人","―",null,null,null,null,{"$f":"SUM(Q23:V24)","v":0},null,null,null,null,null,"円"]
[null,null,null,"（※内訳については正しい人数、金額をご記入ください）",null,null,null,null,null,null,null,null,null,null,null,null,null,null,null,"　（消費税込み）"]
[]
[]
[null,null,"受取口座","金融機関名",null,null,null,null,null,null,null,null,null,null,"銀行",null,null,null,null,null,null,null,"支店"]
[null,null,null,null,null,null," 金融コード",null,null,null,null,null,null,null,null,"支店コード"]
[null,null,null,"預金種別",null,null," １ 普通　2 当座　3 その他（　　　　　　）",null,null,null,null,null,null,null,null,"口座番号"]
[null,null,null,"フ リ ガ ナ"]
[null,null,null,"口 座 名"]
[null,null,"注1）口座名義は通帳よりご確認のうえ、正しくお書きください。"]
[null,null,"　※　那覇市医師会会員の医療機関は口座に変更がない場合、受取口座欄の記入は不要です。"]
[null,null,"　　　受取口座に変更がある場合は、那覇市に債権者登録（変更）が必要ですので、"]
[null,null,"         那覇市保健所健康増進課　（TEL ８５３－７９６１）　予防接種グループへご連絡ください。"]
[null,null,"注2）請求書に予診票を添え、ホッチギス（左上側）または紙ひもで留めてください。"]
[null,null,"注3）請求書に予診票を添えて毎月、月末締めの翌月１０日（必着）まで下記の送付先にご提出ください。"]
[null,null,"   ※１０日を過ぎた場合は、次月に繰越しご請求ください。"]
[null,null,"   《 送付先 》",null,null,"那覇市医師会生活習慣病検診センター （予防接種係）"]
[null,null,null,null,null,"住 所　　","〒900-0034",null,null,null," 那覇市東町２６番１号"]
[null,null,null,null,null,"ＴＥＬ（０９８）８６０－８５９１",null,null,null,null,null,null,null,null,"ＦＡＸ（０９８）８６０－６６９６"]
[]
[]
[null,null,null,null,null,null,null,null,null,null,null,21]

{"sheet":"風しん ","index":11,"n_rows":46,"n_cols":31,"rows_kept":46,"cut":false,"hidden":false,"merged":[[31,6,31,23],[32,3,32,5],[32,6,32,23],[28,22,28,23],[29,9,29,14],[29,18,29,23],[30,3,30,5],[30,6,30,14],[30,15,30,17],[30,18,30,23],[6,11,6,14],[6,16,6,17],[6,19,6,20],[16,10,16,12],[16,14,16,15],[12,13,12,22],[17,5,18,7],[17,8,18,18],[24,2,24,6],[24,11,24,15],[28,2,32,2],[28,3,29,5],[24,7,24,9],[24,16,24,21],[28,6,28,13],[28,16,28,21],[31,3,31,5],[22,11,22,14],[23,11,23,14],[22,2,22,6],[22,7,22,9],[23,2,23,6],[23,7,23,9],[22,16,22,21],[23,16,23,21],[0,21,0,24],[4,1,4,24],[21,2,21,6],[21,7,21,10],[21,11,21,15],[21,16,21,22],[7,11,7,15],[8,12,8,22],[9,10,9,12],[9,13,9,22],[10,13,10,22],[11,13,11,16],[11,20,11,22]]}
[null,null,null,null,null,null,null,null,null,null,null,null,null,null,null,null,null,"（R8年度）",null,null,null,"医師会会員用"]
[]
[null,"(注) これは原本として備え置き、毎月の請求書についてはお手数ですがコピーにてお使いください。"]
[]
[null,"請求書（風しん）"]
[]
[null,null,"　 ","那 覇 市 長　 様",null,null,null,null,null,null,null,null,null,null,null,"年",null,null,"月",null,null,"日"]
[null,null,null,null,null,null,null,null,null,null,"〒"]
[null,null,null,null,null,null,null,null,null,null,"住   所"]
[null,null,null,null,null,null,null,null,null,null,"医療機関名"]
[null,null,null,null,null,null,null,null,null,null,"代表者名",null,null,null,null,null,null,null,null,null,null,null,null,"印"]
[null,null,null,null,null,null,null,null,null,null,"電話番号",null,null,null,null,null,null,"  　ＦＡＸ"]
[null,null,null,null,null,null,null,null,null,null,"担当者名"]
[]
[null,null,"　　予防接種を以下のとおり実施したので、委託契約に基づき請求します。"]
[null,null,null,null,null,null,null,null,null,null,null,null,null,null,null,null,null,null,null,null,null,null,null,null,null,null,null,null,null,null," "]
[null,null,null,null,null,null,null,null,null,"（",null,null,null,"年",null,null,"月","分）"]
[null,null,null,null,null,"請求額",null,null,{"$f":"Q25","v":0}]
[]
[null,null,null,"※上記の請求額については、頭に￥マークを入れてください。 "]
[null,null,null,"※金額については訂正できません。訂正が必要な場合は請求書を差し替えてください。"]
[null,null,"項　目",null,null,null,null,"人数",null,null,null,"単価",null,null,null,null,"金　額"]
[null,null,"予診のみ",null,null,null,null,null,null,null,"人",1705,null,null,null,"円",{"$f":"H23*L23","v":0},null,null,null,null,null,"円"]
[null,null,"予診及び接種",null,null,null,null,null,null,null,"人",8294,null,null,null,"円",{"$f":"H24*L24","v":0},null,null,null,null,null,"円"]
[null,null,"合計",null,null,null,null,{"$f":"SUM(H23:J24)","v":0},null,null,"人","―",null,null,null,null,{"$f":"SUM(Q23:V24)","v":0},null,null,null,null,null,"円"]
[null,null,null,"（※内訳については正しい人数、金額をご記入ください）",null,null,null,null,null,null,null,null,null,null,null,null,null,null,null,"　（消費税込み）"]
[]
[]
[null,null,"受取口座","金融機関名",null,null,null,null,null,null,null,null,null,null,"銀行",null,null,null,null,null,null,null,"支店"]
[null,null,null,null,null,null," 金融コード",null,null,null,null,null,null,null,null,"支店コード"]
[null,null,null,"預金種別",null,null," １ 普通　2 当座　3 その他（　　　　　　）",null,null,null,null,null,null,null,null,"口座番号"]
[null,null,null,"フ リ ガ ナ"]
[null,null,null,"口 座 名"]
[null,null,"注1）口座名義は通帳よりご確認のうえ、正しくお書きください。"]
[null,null,"　※　那覇市医師会会員の医療機関は口座に変更がない場合、受取口座欄の記入は不要です。"]
[null,null,"　　　受取口座に変更がある場合は、那覇市に債権者登録（変更）が必要ですので、"]
[null,null,"         那覇市保健所健康増進課　（TEL ８５３－７９６１）　予防接種グループへご連絡ください。"]
[null,null,"注2）請求書に予診票を添え、ホッチギス（左上側）または紙ひもで留めてください。"]
[null,null,"注3）請求書に予診票を添えて毎月、月末締めの翌月１０日（必着）まで下記の送付先にご提出ください。"]
[null,null,"   ※１０日を過ぎた場合は、次月に繰越しご請求ください。"]
[null,null,"   《 送付先 》",null,null,"那覇市医師会生活習慣病検診センター （予防接種係）"]
[null,null,null,null,null,"住 所　　","〒900-0034",null,null,null," 那覇市東町２６番１号"]
[null,null,null,null,null,"ＴＥＬ（０９８）８６０－８５９１",null,null,null,null,null,null,null,null,"ＦＡＸ（０９８）８６０－６６９６"]
[]
[]
[null,null,null,null,null,null,null,null,null,null,null,22]

{"sheet":"ヒブ","index":12,"n_rows":46,"n_cols":31,"rows_kept":46,"cut":false,"hidden":false,"merged":[[31,6,31,23],[32,3,32,5],[32,6,32,23],[28,22,28,23],[29,9,29,14],[29,18,29,23],[30,3,30,5],[30,6,30,14],[30,15,30,17],[30,18,30,23],[6,11,6,14],[6,16,6,17],[6,19,6,20],[16,10,16,12],[16,14,16,15],[12,13,12,22],[17,5,18,7],[17,8,18,18],[24,2,24,6],[24,11,24,15],[28,2,32,2],[28,3,29,5],[24,7,24,9],[24,16,24,21],[28,6,28,13],[28,16,28,21],[31,3,31,5],[22,11,22,14],[23,11,23,14],[22,2,22,6],[22,7,22,9],[23,2,23,6],[23,7,23,9],[22,16,22,21],[23,16,23,21],[0,21,0,24],[4,1,4,24],[21,2,21,6],[21,7,21,10],[21,11,21,15],[21,16,21,22],[7,11,7,15],[8,12,8,22],[9,10,9,12],[9,13,9,22],[10,13,10,22],[11,13,11,16],[11,20,11,22]]}
[null,null,null,null,null,null,null,null,null,null,null,null,null,null,null,null,null,"（R8年度）",null,null,null,"医師会会員用"]
[]
[null,"(注) これは原本として備え置き、毎月の請求書についてはお手数ですがコピーにてお使いください。"]
[]
[null,"請求書（ヒブ）"]
[]
[null,null,"　 ","那 覇 市 長　 様",null,null,null,null,null,null,null,null,null,null,null,"年",null,null,"月",null,null,"日"]
[null,null,null,null,null,null,null,null,null,null,"〒"]
[null,null,null,null,null,null,null,null,null,null,"住   所"]
[null,null,null,null,null,null,null,null,null,null,"医療機関名"]
[null,null,null,null,null,null,null,null,null,null,"代表者名",null,null,null,null,null,null,null,null,null,null,null,null,"印"]
[null,null,null,null,null,null,null,null,null,null,"電話番号",null,null,null,null,null,null,"  　ＦＡＸ"]
[null,null,null,null,null,null,null,null,null,null,"担当者名"]
[]
[null,null,"　　予防接種を以下のとおり実施したので、委託契約に基づき請求します。"]
[null,null,null,null,null,null,null,null,null,null,null,null,null,null,null,null,null,null,null,null,null,null,null,null,null,null,null,null,null,null," "]
[null,null,null,null,null,null,null,null,null,"（",null,null,null,"年",null,null,"月","分）"]
[null,null,null,null,null,"請求額",null,null,{"$f":"Q25","v":0}]
[]
[null,null,null,"※上記の請求額については、頭に￥マークを入れてください。 "]
[null,null,null,"※金額については訂正できません。訂正が必要な場合は請求書を差し替えてください。"]
[null,null,"項　目",null,null,null,null,"人数",null,null,null,"単価",null,null,null,null,"金　額"]
[null,null,"予診のみ",null,null,null,null,null,null,null,"人",1705,null,null,null,"円",{"$f":"H23*L23","v":0},null,null,null,null,null,"円"]
[null,null,"予診及び接種",null,null,null,null,null,null,null,"人",10616,null,null,null,"円",{"$f":"H24*L24","v":0},null,null,null,null,null,"円"]
[null,null,"合計",null,null,null,null,{"$f":"SUM(H23:J24)","v":0},null,null,"人","―",null,null,null,null,{"$f":"SUM(Q23:V24)","v":0},null,null,null,null,null,"円"]
[null,null,null,"（※内訳については正しい人数、金額をご記入ください）",null,null,null,null,null,null,null,null,null,null,null,null,null,null,null,"　（消費税込み）"]
[]
[]
[null,null,"受取口座","金融機関名",null,null,null,null,null,null,null,null,null,null,"銀行",null,null,null,null,null,null,null,"支店"]
[null,null,null,null,null,null," 金融コード",null,null,null,null,null,null,null,null,"支店コード"]
[null,null,null,"預金種別",null,null," １ 普通　2 当座　3 その他（　　　　　　）",null,null,null,null,null,null,null,null,"口座番号"]
[null,null,null,"フ リ ガ ナ"]
[null,null,null,"口 座 名"]
[null,null,"注1）口座名義は通帳よりご確認のうえ、正しくお書きください。"]
[null,null,"　※　那覇市医師会会員の医療機関は口座に変更がない場合、受取口座欄の記入は不要です。"]
[null,null,"　　　受取口座に変更がある場合は、変更の手続きが必要になりますので下記までご連絡をお願いします。"]
[null,null,"注2）請求書に予診票を添え、ホッチギス（左上側）または紙ひもで留めてください。"]
[null,null,"注3）請求書に予診票を添えて毎月、月末締めの翌月１０日（必着）まで下記の送付先にご提出ください。"]
[null,null,"   ※１０日を過ぎた場合は、次月に繰越しご請求ください。"]
[null,null,"   《 送付先 》",null,null,"那覇市医師会生活習慣病検診センター （予防接種係）"]
[null,null,null,null,null,"住 所　　","〒900-0034",null,null,null," 那覇市東町２６番１号"]
[null,null,null,null,null,"ＴＥＬ（０９８）８６０－８５９１",null,null,null,null,null,null,null,null,"ＦＡＸ（０９８）８６０－６６９６"]
[]
[]
[]
[null,null,null,null,null,null,null,null,null,null,null,23]

{"sheet":"４種混合","index":13,"n_rows":46,"n_cols":31,"rows_kept":46,"cut":false,"hidden":false,"merged":[[31,6,31,23],[32,3,32,5],[32,6,32,23],[28,22,28,23],[29,9,29,14],[29,18,29,23],[30,3,30,5],[30,6,30,14],[30,15,30,17],[30,18,30,23],[6,11,6,14],[6,16,6,17],[6,19,6,20],[16,10,16,12],[16,14,16,15],[12,13,12,22],[17,5,18,7],[17,8,18,18],[24,2,24,6],[24,11,24,15],[28,2,32,2],[28,3,29,5],[24,7,24,9],[24,16,24,21],[28,6,28,13],[28,16,28,21],[31,3,31,5],[22,11,22,14],[23,11,23,14],[22,2,22,6],[22,7,22,9],[23,2,23,6],[23,7,23,9],[22,16,22,21],[23,16,23,21],[0,21,0,24],[4,1,4,24],[21,2,21,6],[21,7,21,10],[21,11,21,15],[21,16,21,22],[7,11,7,15],[8,12,8,22],[9,10,9,12],[9,13,9,22],[10,13,10,22],[11,13,11,16],[11,20,11,22]]}
[null,null,null,null,null,null,null,null,null,null,null,null,null,null,null,null,null,"（R8年度）",null,null,null,"医師会会員用"]
[]
[null,"(注) これは原本として備え置き、毎月の請求書についてはお手数ですがコピーにてお使いください。"]
[]
[null,"請求書（４種混合）"]
[]
[null,null,"　 ","那 覇 市 長　 様",null,null,null,null,null,null,null,null,null,null,null,"年",null,null,"月",null,null,"日"]
[null,null,null,null,null,null,null,null,null,null,"〒"]
[null,null,null,null,null,null,null,null,null,null,"住   所"]
[null,null,null,null,null,null,null,null,null,null,"医療機関名"]
[null,null,null,null,null,null,null,null,null,null,"代表者名",null,null,null,null,null,null,null,null,null,null,null,null,"印"]
[null,null,null,null,null,null,null,null,null,null,"電話番号",null,null,null,null,null,null,"  　ＦＡＸ"]
[null,null,null,null,null,null,null,null,null,null,"担当者名"]
[]
[null,null,"　　予防接種を以下のとおり実施したので、委託契約に基づき請求します。"]
[null,null,null,null,null,null,null,null,null,null,null,null,null,null,null,null,null,null,null,null,null,null,null,null,null,null,null,null,null,null," "]
[null,null,null,null,null,null,null,null,null,"（",null,null,null,"年",null,null,"月","分）"]
[null,null,null,null,null,"請求額",null,null,{"$f":"Q25","v":0}]
[]
[null,null,null,"※上記の請求額については、頭に￥マークを入れてください。 "]
[null,null,null,"※金額については訂正できません。訂正が必要な場合は請求書を差し替えてください。"]
[null,null,"項　目",null,null,null,null,"人数",null,null,null,"単価",null,null,null,null,"金　額"]
[null,null,"予診のみ",null,null,null,null,null,null,null,"人",1705,null,null,null,"円",{"$f":"H23*L23","v":0},null,null,null,null,null,"円"]
[null,null,"予診及び接種",null,null,null,null,null,null,null,"人",12441,null,null,null,"円",{"$f":"H24*L24","v":0},null,null,null,null,null,"円"]
[null,null,"合計",null,null,null,null,{"$f":"SUM(H23:J24)","v":0},null,null,"人","―",null,null,null,null,{"$f":"SUM(Q23:V24)","v":0},null,null,null,null,null,"円"]
[null,null,null,"（※内訳については正しい人数、金額をご記入ください）",null,null,null,null,null,null,null,null,null,null,null,null,null,null,null,"　（消費税込み）"]
[]
[]
[null,null,"受取口座","金融機関名",null,null,null,null,null,null,null,null,null,null,"銀行",null,null,null,null,null,null,null,"支店"]
[null,null,null,null,null,null," 金融コード",null,null,null,null,null,null,null,null,"支店コード"]
[null,null,null,"預金種別",null,null," １ 普通　2 当座　3 その他（　　　　　　）",null,null,null,null,null,null,null,null,"口座番号"]
[null,null,null,"フ リ ガ ナ"]
[null,null,null,"口 座 名"]
[null,null,"注1）口座名義は通帳よりご確認のうえ、正しくお書きください。"]
[null,null,"　※　那覇市医師会会員の医療機関は口座に変更がない場合、受取口座欄の記入は不要です。"]
[null,null,"　　　受取口座に変更がある場合は、那覇市に債権者登録（変更）が必要ですので、"]
[null,null,"         那覇市保健所健康増進課　（TEL ８５３－７９６１）　予防接種グループへご連絡ください。"]
[null,null,"注2）請求書に予診票を添え、ホッチギス（左上側）または紙ひもで留めてください。"]
[null,null,"注3）請求書に予診票を添えて毎月、月末締めの翌月１０日（必着）まで下記の送付先にご提出ください。"]
[null,null,"   ※１０日を過ぎた場合は、次月に繰越しご請求ください。"]
[null,null,"   《 送付先 》",null,null,"那覇市医師会生活習慣病検診センター （予防接種係）"]
[null,null,null,null,null,"住 所　　","〒900-0034",null,null,null," 那覇市東町２６番１号"]
[null,null,null,null,null,"ＴＥＬ（０９８）８６０－８５９１",null,null,null,null,null,null,null,null,"ＦＡＸ（０９８）８６０－６６９６"]
[]
[]
[null,null,null,null,null,null,null,null,null,null,null,24]

{"sheet":"DPT","index":14,"n_rows":46,"n_cols":31,"rows_kept":46,"cut":false,"hidden":false,"merged":[[31,6,31,23],[32,3,32,5],[32,6,32,23],[28,22,28,23],[29,9,29,14],[29,18,29,23],[30,3,30,5],[30,6,30,14],[30,15,30,17],[30,18,30,23],[6,11,6,14],[6,16,6,17],[6,19,6,20],[16,10,16,12],[16,14,16,15],[12,13,12,22],[17,5,18,7],[17,8,18,18],[24,2,24,6],[24,11,24,15],[28,2,32,2],[28,3,29,5],[24,7,24,9],[24,16,24,21],[28,6,28,13],[28,16,28,21],[31,3,31,5],[22,11,22,14],[23,11,23,14],[22,2,22,6],[22,7,22,9],[23,2,23,6],[23,7,23,9],[22,16,22,21],[23,16,23,21],[0,21,0,24],[4,1,4,24],[21,2,21,6],[21,7,21,10],[21,11,21,15],[21,16,21,22],[7,11,7,15],[8,12,8,22],[9,10,9,12],[9,13,9,22],[10,13,10,22],[11,13,11,16],[11,20,11,22]]}
[null,null,null,null,null,null,null,null,null,null,null,null,null,null,null,null,null,"（R8年度）",null,null,null,"医師会会員用"]
[]
[null,"(注) これは原本として備え置き、毎月の請求書についてはお手数ですがコピーにてお使いください。"]
[]
[null,"請求書（DPT）"]
[]
[null,null,"　 ","那 覇 市 長　 様",null,null,null,null,null,null,null,null,null,null,null,"年",null,null,"月",null,null,"日"]
[null,null,null,null,null,null,null,null,null,null,"〒"]
[null,null,null,null,null,null,null,null,null,null,"住   所"]
[null,null,null,null,null,null,null,null,null,null,"医療機関名"]
[null,null,null,null,null,null,null,null,null,null,"代表者名",null,null,null,null,null,null,null,null,null,null,null,null,"印"]
[null,null,null,null,null,null,null,null,null,null,"電話番号",null,null,null,null,null,null,"  　ＦＡＸ"]
[null,null,null,null,null,null,null,null,null,null,"担当者名"]
[]
[null,null,"　　予防接種を以下のとおり実施したので、委託契約に基づき請求します。"]
[null,null,null,null,null,null,null,null,null,null,null,null,null,null,null,null,null,null,null,null,null,null,null,null,null,null,null,null,null,null," "]
[null,null,null,null,null,null,null,null,null,"（",null,null,null,"年",null,null,"月","分）"]
[null,null,null,null,null,"請求額",null,null,{"$f":"Q25","v":0}]
[]
[null,null,null,"※上記の請求額については、頭に￥マークを入れてください。 "]
[null,null,null,"※金額については訂正できません。訂正が必要な場合は請求書を差し替えてください。"]
[null,null,"項　目",null,null,null,null,"人数",null,null,null,"単価",null,null,null,null,"金　額"]
[null,null,"予診のみ",null,null,null,null,null,null,null,"人",1705,null,null,null,"円",{"$f":"H23*L23","v":0},null,null,null,null,null,"円"]
[null,null,"予診及び接種",null,null,null,null,null,null,null,"人",10516,null,null,null,"円",{"$f":"H24*L24","v":0},null,null,null,null,null,"円"]
[null,null,"合計",null,null,null,null,{"$f":"SUM(H23:J24)","v":0},null,null,"人","―",null,null,null,null,{"$f":"SUM(Q23:V24)","v":0},null,null,null,null,null,"円"]
[null,null,null,"（※内訳については正しい人数、金額をご記入ください）",null,null,null,null,null,null,null,null,null,null,null,null,null,null,null,"　（消費税込み）"]
[]
[]
[null,null,"受取口座","金融機関名",null,null,null,null,null,null,null,null,null,null,"銀行",null,null,null,null,null,null,null,"支店"]
[null,null,null,null,null,null," 金融コード",null,null,null,null,null,null,null,null,"支店コード"]
[null,null,null,"預金種別",null,null," １ 普通　2 当座　3 その他（　　　　　　）",null,null,null,null,null,null,null,null,"口座番号"]
[null,null,null,"フ リ ガ ナ"]
[null,null,null,"口 座 名"]
[null,null,"注1）口座名義は通帳よりご確認のうえ、正しくお書きください。"]
[null,null,"　※　那覇市医師会会員の医療機関は口座に変更がない場合、受取口座欄の記入は不要です。"]
[null,null,"　　　受取口座に変更がある場合は、那覇市に債権者登録（変更）が必要ですので、"]
[null,null,"         那覇市保健所健康増進課　（TEL ８５３－７９６１）　予防接種グループへご連絡ください。"]
[null,null,"注2）請求書に予診票を添え、ホッチギス（左上側）または紙ひもで留めてください。"]
[null,null,"注3）請求書に予診票を添えて毎月、月末締めの翌月１０日（必着）まで下記の送付先にご提出ください。"]
[null,null,"   ※１０日を過ぎた場合は、次月に繰越しご請求ください。"]
[null,null,"   《 送付先 》",null,null,"那覇市医師会生活習慣病検診センター （予防接種係）"]
[null,null,null,null,null,"住 所　　","〒900-0034",null,null,null," 那覇市東町２６番１号"]
[null,null,null,null,null,"ＴＥＬ（０９８）８６０－８５９１",null,null,null,null,null,null,null,null,"ＦＡＸ（０９８）８６０－６６９６"]
[]
[]
[null,null,null,null,null,null,null,null,null,null,null,25]

{"sheet":"不活化ポリオ ","index":15,"n_rows":46,"n_cols":31,"rows_kept":46,"cut":false,"hidden":false,"merged":[[6,11,6,14],[6,16,6,17],[6,19,6,20],[16,10,16,12],[16,14,16,15],[30,15,30,17],[30,18,30,23],[24,2,24,6],[24,11,24,15],[22,11,22,14],[23,11,23,14],[22,2,22,6],[22,7,22,9],[23,2,23,6],[23,7,23,9],[24,7,24,9],[12,13,12,22],[17,5,18,7],[17,8,18,18],[28,2,32,2],[28,3,29,5],[28,6,28,13],[28,16,28,21],[31,3,31,5],[31,6,31,23],[32,3,32,5],[32,6,32,23],[28,22,28,23],[29,9,29,14],[29,18,29,23],[30,3,30,5],[30,6,30,14],[22,16,22,21],[23,16,23,21],[24,16,24,21],[0,21,0,24],[4,1,4,24],[21,2,21,6],[21,7,21,10],[21,11,21,15],[21,16,21,22],[7,11,7,15],[8,12,8,22],[9,10,9,12],[9,13,9,22],[10,13,10,22],[11,13,11,16],[11,20,11,22]]}
[null,null,null,null,null,null,null,null,null,null,null,null,null,null,null,null,null,"（R8年度）",null,null,null,"医師会会員用"]
[]
[null,"(注) これは原本として備え置き、毎月の請求書についてはお手数ですがコピーにてお使いください。"]
[]
[null,"請求書（不活化ポリオ）"]
[]
[null,null,"　 ","那 覇 市 長　 様",null,null,null,null,null,null,null,null,null,null,null,"年",null,null,"月",null,null,"日"]
[null,null,null,null,null,null,null,null,null,null,"〒"]
[null,null,null,null,null,null,null,null,null,null,"住   所"]
[null,null,null,null,null,null,null,null,null,null,"医療機関名"]
[null,null,null,null,null,null,null,null,null,null,"代表者名",null,null,null,null,null,null,null,null,null,null,null,null,"印"]
[null,null,null,null,null,null,null,null,null,null,"電話番号",null,null,null,null,null,null,"  　ＦＡＸ"]
[null,null,null,null,null,null,null,null,null,null,"担当者名"]
[]
[null,null,"　　予防接種を以下のとおり実施したので、委託契約に基づき請求します。"]
[null,null,null,null,null,null,null,null,null,null,null,null,null,null,null,null,null,null,null,null,null,null,null,null,null,null,null,null,null,null," "]
[null,null,null,null,null,null,null,null,null,"（",null,null,null,"年",null,null,"月","分）"]
[null,null,null,null,null,"請求額",null,null,{"$f":"Q25","v":0}]
[]
[null,null,null,"※上記の請求額については、頭に￥マークを入れてください。 "]
[null,null,null,"※金額については訂正できません。訂正が必要な場合は請求書を差し替えてください。"]
[null,null,"項　目",null,null,null,null,"人数",null,null,null,"単価",null,null,null,null,"金　額"]
[null,null,"予診のみ",null,null,null,null,null,null,null,"人",1705,null,null,null,"円",{"$f":"H23*L23","v":0},null,null,null,null,null,"円"]
[null,null,"予診及び接種",null,null,null,null,null,null,null,"人",11176,null,null,null,"円",{"$f":"H24*L24","v":0},null,null,null,null,null,"円"]
[null,null,"合計",null,null,null,null,{"$f":"SUM(H23:J24)","v":0},null,null,"人","―",null,null,null,null,{"$f":"SUM(Q23:V24)","v":0},null,null,null,null,null,"円"]
[null,null,null,"（※内訳については正しい人数、金額をご記入ください）",null,null,null,null,null,null,null,null,null,null,null,null,null,null,null,"　（消費税込み）"]
[]
[]
[null,null,"受取口座","金融機関名",null,null,null,null,null,null,null,null,null,null,"銀行",null,null,null,null,null,null,null,"支店"]
[null,null,null,null,null,null," 金融コード",null,null,null,null,null,null,null,null,"支店コード"]
[null,null,null,"預金種別",null,null," １ 普通　2 当座　3 その他（　　　　　　）",null,null,null,null,null,null,null,null,"口座番号"]
[null,null,null,"フ リ ガ ナ"]
[null,null,null,"口 座 名"]
[null,null,"注1）口座名義は通帳よりご確認のうえ、正しくお書きください。"]
[null,null,"　※　那覇市医師会会員の医療機関は口座に変更がない場合、受取口座欄の記入は不要です。"]
[null,null,"　　　受取口座に変更がある場合は、変更の手続きが必要になりますので下記までご連絡をお願いします。"]
[null,null,"注2）請求書に予診票を添え、ホッチギス（左上側）または紙ひもで留めてください。"]
[null,null,"注3）請求書に予診票を添えて毎月、月末締めの翌月１０日（必着）まで下記の送付先にご提出ください。"]
[null,null,"   ※１０日を過ぎた場合は、次月に繰越しご請求ください。"]
[null,null,"   《 送付先 》",null,null,"那覇市医師会生活習慣病検診センター （予防接種係）"]
[null,null,null,null,null,"住 所　　","〒900-0034",null,null,null," 那覇市東町２６番１号"]
[null,null,null,null,null,"ＴＥＬ（０９８）８６０－８５９１",null,null,null,null,null,null,null,null,"ＦＡＸ（０９８）８６０－６６９６"]
[]
[]
[]
[null,null,null,null,null,null,null,null,null,null,null,26]

{"sheet":"高齢者肺炎球菌","index":16,"n_rows":49,"n_cols":31,"rows_kept":49,"cut":false,"hidden":false,"merged":[[6,11,6,14],[6,16,6,17],[6,19,6,20],[16,10,16,12],[16,14,16,15],[11,13,11,16],[11,20,11,22],[12,13,12,22],[17,8,18,18],[7,11,7,15],[8,12,8,22],[9,10,9,12],[9,13,9,22],[10,13,10,22],[34,3,34,5],[34,6,34,23],[35,6,35,23],[31,2,35,2],[0,21,0,24],[4,1,4,24],[21,2,21,7],[21,8,21,11],[21,12,21,16],[21,17,21,22],[22,12,22,15],[23,12,23,15],[24,12,24,15],[25,12,25,16],[35,3,35,5],[17,5,18,7],[22,2,22,7],[23,2,23,7],[24,2,24,7],[25,2,25,7],[31,3,32,5],[31,6,31,13],[22,8,22,10],[23,8,23,10],[24,8,24,10],[25,8,25,10],[22,17,22,21],[23,17,23,21],[24,17,24,21],[25,17,25,21],[31,16,31,21],[31,22,31,23],[32,9,32,14],[32,18,32,23],[33,3,33,5],[33,6,33,14],[33,15,33,17],[33,18,33,23]]}
[null,null,null,null,null,null,null,null,null,null,null,null,null,null,null,null,null,"（R8年度）",null,null,null,"医師会会員用"]
[]
[null,"(注) これは原本として備え置き、毎月の請求書についてはお手数ですがコピーにてお使いください。"]
[]
[null,"請求書（高齢者肺炎球菌）"]
[]
[null,null,"　 ","那 覇 市 長　 様",null,null,null,null,null,null,null,null,null,null,null,"年",null,null,"月",null,null,"日"]
[null,null,null,null,null,null,null,null,null,null,"〒"]
[null,null,null,null,null,null,null,null,null,null,"住   所"]
[null,null,null,null,null,null,null,null,null,null,"医療機関名"]
[null,null,null,null,null,null,null,null,null,null,"代表者名",null,null,null,null,null,null,null,null,null,null,null,null,"印"]
[null,null,null,null,null,null,null,null,null,null,"電話番号",null,null,null,null,null,null,"  　ＦＡＸ"]
[null,null,null,null,null,null,null,null,null,null,"担当者名"]
[]
[null,null,"　　予防接種を以下のとおり実施したので、委託契約に基づき請求します。"]
[null,null,null,null,null,null,null,null,null,null,null,null,null,null,null,null,null,null,null,null,null,null,null,null,null,null,null,null,null,null," "]
[null,null,null,null,null,null,null,null,null,"（",null,null,null,"年",null,null,"月","分）"]
[null,null,null,null,null,"請求額",null,null,{"$f":"R26","v":0}]
[]
[null,null,null,"※上記の請求額については、④の請求合計を記入し、頭に￥マークを入れてください。 "]
[null,null,null,"※金額については訂正できません。訂正が必要な場合は請求書を差し替えてください。"]
[null,null,"項　目",null,null,null,null,null,"人数",null,null,null,"単価",null,null,null,null,"金　額"]
[null,null,"①予診のみ",null,null,null,null,null,null,null,null,"人",1100,null,null,null,"円",{"$f":"I23*M23","v":0},null,null,null,null,"円"]
[null,null,"②予診及び接種(自己負担あり)",null,null,null,null,null,null,null,null,"人",6561,null,null,null,"円",{"$f":"I24*M24","v":0},null,null,null,null,"円"]
[null,null,"③予診及び接種(自己負担なし)",null,null,null,null,null,null,null,null,"人",11561,null,null,null,"円",0,null,null,null,null,"円"]
[null,null,"④請求合計（①＋②＋③）",null,null,null,null,null,{"$f":"SUM(I23:K25)","v":0},null,null,"人","―",null,null,null,null,{"$f":"SUM(R23:V25)","v":0},null,null,null,null,"円"]
[null,null,null,"（※内訳については正しい人数、金額をご記入ください）",null,null,null,null,null,null,null,null,null,null,null,null,null,null,null,null,"（消費税込み）"]
[null,null,"注1：自己負担額　5,000円"]
[null,null,"注2：④の請求合計の金額は、上記の「請求額」欄に記入する。"]
[]
[]
[null,null,"受取口座","金融機関名",null,null,null,null,null,null,null,null,null,null,"銀行",null,null,null,null,null,null,null,"支店"]
[null,null,null,null,null,null," 金融コード",null,null,null,null,null,null,null,null,"支店コード"]
[null,null,null,"預金種別",null,null," １ 普通　2 当座　3 その他（　　　　　　）",null,null,null,null,null,null,null,null,"口座番号"]
[null,null,null,"フ リ ガ ナ"]
[null,null,null,"口 座 名"]
[null,null,"注1）口座名義は通帳よりご確認のうえ、正しくお書きください。"]
[null,null,"　※　那覇市医師会会員の医療機関は口座に変更がない場合、受取口座欄の記入は不要です。"]
[null,null,"　　　受取口座に変更がある場合は、変更の手続きが必要になりますので下記までご連絡をお願いします。"]
[null,null,"注2）請求書に予診票を添え、ホッチギス（左上側）または紙ひもで留めてください。"]
[null,null,"注3）請求書に予診票を添えて毎月、月末締めの翌月１０日（必着）まで下記の送付先にご提出ください。"]
[null,null,"   ※１０日を過ぎた場合は、次月に繰越しご請求ください。"]
[null,null,"        《 送付先 》",null,null,"那覇市医師会生活習慣病検診センター （予防接種係）"]
[null,null,null,null,null,"住 所　　","〒900-0034",null,null,null," 那覇市東町２６番１号"]
[null,null,null,null,null,"ＴＥＬ（０９８）８６０－８５９１",null,null,null,null,null,null,null,null,"ＦＡＸ（０９８）８６０－６６９６"]
[]
[]
[]
[null,null,null,null,null,null,null,null,null,null,null,27]

{"sheet":"帯状疱疹","index":17,"n_rows":49,"n_cols":30,"rows_kept":49,"cut":false,"hidden":false,"merged":[[16,9,16,11],[16,13,16,14],[11,19,11,21],[12,12,12,21],[10,12,10,21],[11,12,11,15],[17,4,18,6],[17,7,18,17],[21,2,21,7],[21,8,21,11],[21,12,21,16],[21,17,21,22],[0,20,0,23],[4,1,4,23],[7,10,7,14],[8,11,8,21],[9,9,9,11],[9,12,9,21],[6,10,6,13],[6,15,6,16],[6,18,6,19],[23,2,24,4],[23,5,23,7],[23,8,23,10],[23,12,23,15],[23,17,23,21],[24,5,24,7],[24,8,24,10],[24,12,24,15],[24,17,24,21],[22,8,22,10],[22,12,22,15],[22,17,22,21],[27,12,27,16],[27,17,27,21],[25,17,25,21],[26,5,26,7],[26,8,26,10],[26,12,26,15],[26,17,26,21],[35,6,35,23],[32,16,32,21],[33,18,33,23],[34,6,34,14],[34,15,34,17],[34,18,34,23],[22,2,22,7],[27,2,27,7],[27,8,27,10],[32,2,36,2],[32,3,33,5],[34,3,34,5],[35,3,35,5],[36,3,36,5],[32,6,32,13],[36,6,36,23],[25,2,26,4],[25,5,25,7],[25,8,25,10],[25,12,25,15],[32,22,32,23],[33,9,33,14]]}
[null,null,null,null,null,null,null,null,null,null,null,null,null,null,null,null,"（R8年度）",null,null,null,"医師会会員用"]
[]
[null,"(注) これは原本として備え置き、毎月の請求書についてはお手数ですがコピーにてお使いください。"]
[]
[null,"請求書（高齢者帯状疱疹ワクチン）"]
[]
[null,null,"那 覇 市 長　 様",null,null,null,null,null,null,null,null,null,null,null,"年",null,null,"月",null,null,"日"]
[null,null,null,null,null,null,null,null,null,"〒"]
[null,null,null,null,null,null,null,null,null,"住   所"]
[null,null,null,null,null,null,null,null,null,"医療機関名"]
[null,null,null,null,null,null,null,null,null,"代表者名",null,null,null,null,null,null,null,null,null,null,null,null,null,"印"]
[null,null,null,null,null,null,null,null,null,"電話番号",null,null,null,null,null,null,"  　ＦＡＸ"]
[null,null,null,null,null,null,null,null,null,"担当者名"]
[]
[]
[null,null,null,null,null,null,null,null,null,null,null,null,null,null,null,null,null,null,null,null,null,null,null,null,null,null,null,null,null," "]
[null,null,null,null,null,null,null,null,"（",null,null,null,"年",null,null,"月","分）"]
[null,null,null,null,"請求額",null,null,{"$f":"R28","v":0}]
[]
[null,null,"※上記の請求額については、④の請求合計を記入し、頭に￥マークを入れてください。 "]
[null,null,"※金額については訂正できません。訂正が必要な場合は請求書を差し替えてください。"]
[null,null,"項　目",null,null,null,null,null,"人数",null,null,null,"単価",null,null,null,null,"金　額"]
[null,null,"①予診のみ",null,null,null,null,null,null,null,null,"人",1100,null,null,null,"円",{"$f":"I23*M23","v":0},null,null,null,null,"円"]
[null,null,"②予診及び接種\n　(自己負担あり)",null,null,"組換えワクチン",null,null,null,null,null,"人",12791,null,null,null,"円",{"$f":"I24*M24","v":0},null,null,null,null,"円"]
[null,null,null,null,null,"生ワクチン",null,null,null,null,null,"人",3591,null,null,null,"円",0,null,null,null,null,"円"]
[null,null,"③予診及び接種\n　(自己負担なし)",null,null,"組換えワクチン",null,null,null,null,null,"人",21791,null,null,null,"円",0,null,null,null,null,"円"]
[null,null,null,null,null,"生ワクチン",null,null,null,null,null,"人",8591,null,null,null,"円",0,null,null,null,null,"円"]
[null,null,"④請求合計（①＋②＋③）",null,null,null,null,null,{"$f":"SUM(I23:K27)","v":0},null,null,"人","―",null,null,null,null,{"$f":"SUM(R23:V27)","v":0},null,null,null,null,"円"]
[null,null,null,"（※内訳については正しい人数、金額をご記入ください）",null,null,null,null,null,null,null,null,null,null,null,null,null,null,null,null,"（消費税込み）"]
[null,null,"注1：自己負担額　組換え：9,000円　生：5,000円"]
[null,null,"注2：④の請求合計の金額は、上記の「請求額」欄に記入する。"]
[]
[null,null,"受取口座","金融機関名",null,null,null,null,null,null,null,null,null,null,"銀行",null,null,null,null,null,null,null,"支店"]
[null,null,null,null,null,null," 金融コード",null,null,null,null,null,null,null,null,"支店コード"]
[null,null,null,"預金種別",null,null," １ 普通　2 当座　3 その他（　　　　　　）",null,null,null,null,null,null,null,null,"口座番号"]
[null,null,null,"フ リ ガ ナ"]
[null,null,null,"口 座 名"]
[null,null,"注1）口座名義は通帳よりご確認のうえ、正しくお書きください。"]
[null,null,"　※　那覇市医師会会員の医療機関は口座に変更がない場合、受取口座欄の記入は不要です。"]
[null,null,"　　　受取口座に変更がある場合は、変更の手続きが必要になりますので下記までご連絡をお願いします。"]
[null,null,"注2）請求書に予診票を添え、ホッチギス（左上側）または紙ひもで留めてください。"]
[null,null,"注3）請求書に予診票を添えて毎月、月末締めの翌月１０日（必着）まで下記の送付先にご提出ください。"]
[null,null,"   ※１０日を過ぎた場合は、次月に繰越しご請求ください。"]
[null,null,"        《 送付先 》",null,null,"那覇市医師会生活習慣病検診センター （予防接種係）"]
[null,null,null,null,null,"住 所　　","〒900-0034",null,null,null," 那覇市東町２６番１号"]
[null,null,null,null,null,"ＴＥＬ（０９８）８６０－８５９１",null,null,null,null,null,null,null,null,"ＦＡＸ（０９８）８６０－６６９６"]
[]
[]
[null,null,null,null,null,null,null,null,null,null,28]

{"sheet":"成人風しん","index":18,"n_rows":46,"n_cols":31,"rows_kept":46,"cut":false,"hidden":false,"merged":[[22,16,22,21],[23,16,23,21],[24,16,24,21],[25,16,25,21],[6,16,6,17],[6,19,6,20],[16,10,16,12],[16,14,16,15],[12,13,12,22],[25,2,25,6],[25,11,25,15],[22,2,22,6],[22,11,22,14],[23,2,24,4],[23,5,23,6],[23,11,23,14],[24,5,24,6],[24,11,24,14],[22,7,22,9],[23,7,23,9],[24,7,24,9],[25,7,25,9],[44,1,44,24],[29,2,33,2],[29,3,30,5],[33,3,33,5],[29,6,29,13],[29,16,29,21],[29,22,29,23],[30,9,30,14],[30,18,30,23],[31,3,31,5],[31,6,31,14],[31,15,31,17],[31,18,31,23],[32,3,32,5],[32,6,32,23],[33,6,33,23],[0,21,0,24],[4,1,4,24],[21,2,21,6],[21,7,21,10],[21,11,21,15],[21,16,21,22],[7,11,7,15],[8,12,8,22],[9,10,9,12],[9,13,9,22],[10,13,10,22],[11,13,11,16],[11,20,11,22],[17,5,18,7],[17,8,18,18],[6,11,6,14]]}
[null,null,null,null,null,null,null,null,null,null,null,null,null,null,null,null,null,"（R8年度）",null,null,null,"医師会会員用"]
[]
[null,"(注) これは原本として備え置き、毎月の請求書についてはお手数ですがコピーにてお使いください。"]
[]
[null,"請求書（成人風しん第５期）"]
[]
[null,null,"　 ","那 覇 市 長　 様",null,null,null,null,null,null,null,null,null,null,null,"年",null,null,"月",null,null,"日"]
[null,null,null,null,null,null,null,null,null,null,"〒"]
[null,null,null,null,null,null,null,null,null,null,"住   所"]
[null,null,null,null,null,null,null,null,null,null,"医療機関名"]
[null,null,null,null,null,null,null,null,null,null,"代表者名",null,null,null,null,null,null,null,null,null,null,null,null,"印"]
[null,null,null,null,null,null,null,null,null,null,"電話番号",null,null,null,null,null,null,"  　ＦＡＸ"]
[null,null,null,null,null,null,null,null,null,null,"担当者名"]
[]
[null,null,"　　予防接種を以下のとおり実施したので、委託契約に基づき請求します。"]
[null,null,null,null,null,null,null,null,null,null,null,null,null,null,null,null,null,null,null,null,null,null,null,null,null,null,null,null,null,null," "]
[null,null,null,null,null,null,null,null,null,"（",null,null,null,"年",null,null,"月","分）"]
[null,null,null,null,null,"請求額",null,null,{"$f":"Q26","v":0}]
[]
[null,null,null,"※上記の請求額については、頭に￥マークを入れてください。 "]
[null,null,null,"※金額については訂正できません。訂正が必要な場合は請求書を差し替えてください。"]
[null,null,"項　目",null,null,null,null,"人数",null,null,null,"単価",null,null,null,null,"金　額"]
[null,null,"　　予診のみ",null,null,null,null,null,null,null,"人",1100,null,null,null,"円",{"$f":"H23*L23","v":0},null,null,null,null,null,"円"]
[null,null,"　予診及び接種",null,null,"MR",null,null,null,null,"人",10351,null,null,null,"円",{"$f":"H24*L24","v":0},null,null,null,null,null,"円"]
[null,null,null,null,null,"風しん\n単　独",null,null,null,null,"人",6754,null,null,null,"円",0,null,null,null,null,null,"円"]
[null,null,"合計",null,null,null,null,{"$f":"SUM(H23:J25)","v":0},null,null,"人","―",null,null,null,null,{"$f":"SUM(Q23:V25)","v":0},null,null,null,null,null,"円"]
[null,null,null,"（※内訳については正しい人数、金額をご記入ください）",null,null,null,null,null,null,null,null,null,null,null,null,null,null,null,"　（消費税込み）"]
[]
[]
[null,null,"受取口座","金融機関名",null,null,null,null,null,null,null,null,null,null,"銀行",null,null,null,null,null,null,null,"支店"]
[null,null,null,null,null,null," 金融コード",null,null,null,null,null,null,null,null,"支店コード"]
[null,null,null,"預金種別",null,null," １ 普通　2 当座　3 その他（　　　　　　）",null,null,null,null,null,null,null,null,"口座番号"]
[null,null,null,"フ リ ガ ナ"]
[null,null,null,"口 座 名"]
[null,null,"注1）口座名義は通帳よりご確認のうえ、正しくお書きください。"]
[null,null,"　※　那覇市医師会会員の医療機関は口座に変更がない場合、受取口座欄の記入は不要です。"]
[null,null,"　　　受取口座に変更がある場合は、変更の手続きが必要になりますので下記までご連絡をお願いします。"]
[null,null,"注2）請求書に予診票を添え、ホッチギス（左上側）または紙ひもで留めてください。"]
[null,null,"注3）請求書に予診票を添えて毎月、月末締めの翌月１０日（必着）まで下記の送付先にご提出ください。"]
[null,null,"   ※１０日を過ぎた場合は、次月に繰越しご請求ください。"]
[null,null,"   《 送付先 》",null,null,"那覇市医師会生活習慣病検診センター （予防接種係）"]
[null,null,null,null,null,"住 所　　","〒900-0034",null,null,null," 那覇市東町２６番１号"]
[null,null,null,null,null,"ＴＥＬ（０９８）８６０－８５９１",null,null,null,null,null,null,null,null,"ＦＡＸ（０９８）８６０－６６９６"]
[]
[]
[null,null,null,null,null,null,null,null,null,null,null,29]

{"sheet":"RSウイルス母子免疫ワクチン","index":19,"n_rows":46,"n_cols":31,"rows_kept":46,"cut":false,"hidden":false,"merged":[[24,16,24,21],[28,6,28,13],[28,16,28,21],[28,22,28,23],[29,9,29,14],[29,18,29,23],[22,2,22,6],[6,11,6,14],[6,16,6,17],[6,19,6,20],[16,10,16,12],[16,14,16,15],[22,7,22,9],[22,16,22,21],[12,13,12,22],[17,5,18,7],[17,8,18,18],[23,2,23,6],[28,2,32,2],[28,3,29,5],[24,2,24,6],[24,11,24,15],[23,7,23,9],[24,7,24,9],[32,3,32,5],[32,6,32,23],[30,3,30,5],[30,6,30,14],[30,15,30,17],[30,18,30,23],[31,3,31,5],[31,6,31,23],[23,16,23,21],[22,11,22,14],[23,11,23,14],[0,21,0,24],[4,1,4,24],[21,2,21,6],[21,7,21,10],[21,11,21,15],[21,16,21,22],[7,11,7,15],[8,12,8,22],[9,10,9,12],[9,13,9,22],[10,13,10,22],[11,13,11,16],[11,20,11,22]]}
[null,null,null,null,null,null,null,null,null,null,null,null,null,null,null,null,null,"（R8年度）",null,null,null,"医師会会員用"]
[]
[null,"(注) これは原本として備え置き、毎月の請求書についてはお手数ですがコピーにてお使いください。"]
[]
[null,"請求書（RSウイルス母子免疫ワクチン）"]
[]
[null,null,"　 ","那 覇 市 長　 様",null,null,null,null,null,null,null,null,null,null,null,"年",null,null,"月",null,null,"日"]
[null,null,null,null,null,null,null,null,null,null,"〒"]
[null,null,null,null,null,null,null,null,null,null,"住   所"]
[null,null,null,null,null,null,null,null,null,null,"医療機関名"]
[null,null,null,null,null,null,null,null,null,null,"代表者名",null,null,null,null,null,null,null,null,null,null,null,null,"印"]
[null,null,null,null,null,null,null,null,null,null,"電話番号",null,null,null,null,null,null,"  　ＦＡＸ"]
[null,null,null,null,null,null,null,null,null,null,"担当者名"]
[]
[null,null,"　　予防接種を以下のとおり実施したので、委託契約に基づき請求します。"]
[null,null,null,null,null,null,null,null,null,null,null,null,null,null,null,null,null,null,null,null,null,null,null,null,null,null,null,null,null,null," "]
[null,null,null,null,null,null,null,null,null,"（",null,null,null,"年",null,null,"月","分）"]
[null,null,null,null,null,"請求額",null,null,{"$f":"Q25","v":0}]
[]
[null,null,null,"※上記の請求額については、頭に￥マークを入れてください。 "]
[null,null,null,"※金額については訂正できません。訂正が必要な場合は請求書を差し替えてください。"]
[null,null,"項　目",null,null,null,null,"人数",null,null,null,"単価",null,null,null,null,"金　額"]
[null,null,"予診のみ",null,null,null,null,null,null,null,"人",1100,null,null,null,"円",{"$f":"H23*L23","v":0},null,null,null,null,null,"円"]
[null,null,"予診及び接種",null,null,null,null,null,null,null,"人",29931,null,null,null,"円",{"$f":"H24*L24","v":0},null,null,null,null,null,"円"]
[null,null,"合計",null,null,null,null,{"$f":"SUM(H23:J24)","v":0},null,null,"人","―",null,null,null,null,{"$f":"SUM(Q23:V24)","v":0},null,null,null,null,null,"円"]
[null,null,null,"（※内訳については正しい人数、金額をご記入ください）",null,null,null,null,null,null,null,null,null,null,null,null,null,null,null,"　（消費税込み）"]
[]
[]
[null,null,"受取口座","金融機関名",null,null,null,null,null,null,null,null,null,null,"銀行",null,null,null,null,null,null,null,"支店"]
[null,null,null,null,null,null," 金融コード",null,null,null,null,null,null,null,null,"支店コード"]
[null,null,null,"預金種別",null,null," １ 普通　2 当座　3 その他（　　　　　　）",null,null,null,null,null,null,null,null,"口座番号"]
[null,null,null,"フ リ ガ ナ"]
[null,null,null,"口 座 名"]
[null,null,"注1）口座名義は通帳よりご確認のうえ、正しくお書きください。"]
[null,null,"　※　那覇市医師会会員の医療機関は口座に変更がない場合、受取口座欄の記入は不要です。"]
[null,null,"　　　受取口座に変更がある場合は、変更の手続きが必要になりますので下記までご連絡をお願いします。"]
[null,null,"注2）請求書に予診票を添え、ホッチギス（左上側）または紙ひもで留めてください。"]
[null,null,"注3）請求書に予診票を添えて毎月、月末締めの翌月１０日（必着）まで下記の送付先にご提出ください。"]
[null,null,"   ※１０日を過ぎた場合は、次月に繰越しご請求ください。"]
[null,null,"   《 送付先 》",null,null,"那覇市医師会生活習慣病検診センター （予防接種係）"]
[null,null,null,null,null,"住 所　　","〒900-0034",null,null,null," 那覇市東町２６番１号"]
[null,null,null,null,null,"ＴＥＬ（０９８）８６０－８５９１",null,null,null,null,null,null,null,null,"ＦＡＸ（０９８）８６０－６６９６"]
[]
[]
[]
[null,null,null,null,null,null,null,null,null,null,null,30]